{"text_format":"1","workbook":"xlsx","n_sheets":2,"sheets":["lomake","ryhmät"],"not_rendered":{"charts":0,"images":0,"macros":1,"external_links":0,"defined_names":1,"comments":0,"pivot_tables":0},"unopened":[],"bounds":{"document_bytes":16777216,"sheet_cells":100000,"rows_first":2000,"rows_last":500,"rows_between":2000,"halvings":0,"cell_chars":16384,"cell_head_chars":4096},"cells_cut":0,"cells_raw":0,"read":"whole","date_system":"1900"}

{"sheet":"lomake","index":0,"n_rows":126,"n_cols":13,"rows_kept":126,"cut":false,"hidden":false,"merged":[]}
[null,null,"Kysely päiväkotien ryhmätietojen keräämiseksi (2017 syntyneet)"]
[]
[null,null,"1. Valitse ensin päiväkotisi"]
[]
[null,null,"Valitse tästä (alasvetovalikko)"]
[null,null,{"$f":"IF(C5=\"Valitse tästä (alasvetovalikko)\", \"ET OLE VALINNUT VIELÄ PÄIVÄKOTIASI\",\"\")","v":"ET OLE VALINNUT VIELÄ PÄIVÄKOTIASI"}]
[]
[]
[null,null,"2. Valitse esitäytettyjen ryhmien opettajien määrä"]
[null,null,{"$f":"IF(AND(C5<>\"Valitse tästä (alasvetovalikko)\",C12:C22=\"\"),\"EI ESITÄYTETTYJÄ RYHMIÄ, SIIRRY KOHTAAN 4\",\"\")","v":""}]
[null,null,"Ryhmän nimi","Opettajien lukumäärä ryhmässä"]
[2,null,{"$f":"IF(VLOOKUP($C$5,ryhmät!$A$2:$L$2000,$A12,FALSE)=0,\"\",VLOOKUP(lomake!$C$5,ryhmät!$A$2:$L$2000,$A12,FALSE))","v":""}]
[3,null,{"$f":"IF(VLOOKUP($C$5,ryhmät!$A$2:$L$2000,$A13,FALSE)=0,\"\",VLOOKUP(lomake!$C$5,ryhmät!$A$2:$L$2000,$A13,FALSE))","v":""}]
[4,null,{"$f":"IF(VLOOKUP($C$5,ryhmät!$A$2:$L$2000,$A14,FALSE)=0,\"\",VLOOKUP(lomake!$C$5,ryhmät!$A$2:$L$2000,$A14,FALSE))","v":""}]
[5,null,{"$f":"IF(VLOOKUP($C$5,ryhmät!$A$2:$L$2000,$A15,FALSE)=0,\"\",VLOOKUP(lomake!$C$5,ryhmät!$A$2:$L$2000,$A15,FALSE))","v":""}]
[6,null,{"$f":"IF(VLOOKUP($C$5,ryhmät!$A$2:$L$2000,$A16,FALSE)=0,\"\",VLOOKUP(lomake!$C$5,ryhmät!$A$2:$L$2000,$A16,FALSE))","v":""}]
[7,null,{"$f":"IF(VLOOKUP($C$5,ryhmät!$A$2:$L$2000,$A17,FALSE)=0,\"\",VLOOKUP(lomake!$C$5,ryhmät!$A$2:$L$2000,$A17,FALSE))","v":""}]
[8,null,{"$f":"IF(VLOOKUP($C$5,ryhmät!$A$2:$L$2000,$A18,FALSE)=0,\"\",VLOOKUP(lomake!$C$5,ryhmät!$A$2:$L$2000,$A18,FALSE))","v":""}]
[9,null,{"$f":"IF(VLOOKUP($C$5,ryhmät!$A$2:$L$2000,$A19,FALSE)=0,\"\",VLOOKUP(lomake!$C$5,ryhmät!$A$2:$L$2000,$A19,FALSE))","v":""}]
[10,null,{"$f":"IF(VLOOKUP($C$5,ryhmät!$A$2:$L$2000,$A20,FALSE)=0,\"\",VLOOKUP(lomake!$C$5,ryhmät!$A$2:$L$2000,$A20,FALSE))","v":""}]
[11,null,{"$f":"IF(VLOOKUP($C$5,ryhmät!$A$2:$L$2000,$A21,FALSE)=0,\"\",VLOOKUP(lomake!$C$5,ryhmät!$A$2:$L$2000,$A21,FALSE))","v":""}]
[12,null,{"$f":"IF(VLOOKUP($C$5,ryhmät!$A$2:$L$2000,$A22,FALSE)=0,\"\",VLOOKUP(lomake!$C$5,ryhmät!$A$2:$L$2000,$A22,FALSE))","v":""}]
[]
[null,null,"3. Täytä esitäytettyjen ryhmien muut tiedot"]
[null,null,{"$f":"\"Ryhmä: \"&C12","v":"Ryhmä: "}]
[null,null,"Opettajan etunimi","Opettajan sukunimi","Opettajan henkilötunnus","Opettajan muodollinen pätevyys","Aikuisten määrä","Ryhmän ikäluokat","Ryhmän koko","Vuorohoitoryhmä","Integroitu erityisryhmä","Osa-aikaiset lapset","Kommentti"]
[]
[]
[]
[]
[null,null,{"$f":"\"Ryhmä: \"&C13","v":"Ryhmä: "}]
[null,null,"Opettajan etunimi","Opettajan sukunimi","Opettajan henkilötunnus","Opettajan muodollinen pätevyys","Aikuisten määrä","Ryhmän ikäluokat","Ryhmän koko","Vuorohoitoryhmä","Integroitu erityisryhmä","Osa-aikaiset lapset","Kommentti"]
[]
[]
[]
[]
[null,null,{"$f":"\"Ryhmä: \"&C14","v":"Ryhmä: "}]
[null,null,"Opettajan etunimi","Opettajan sukunimi","Opettajan henkilötunnus","Opettajan muodollinen pätevyys","Aikuisten määrä","Ryhmän ikäluokat","Ryhmän koko","Vuorohoitoryhmä","Integroitu erityisryhmä","Osa-aikaiset lapset","Kommentti"]
[]
[]
[]
[]
[null,null,{"$f":"\"Ryhmä: \"&C15","v":"Ryhmä: "}]
[null,null,"Opettajan etunimi","Opettajan sukunimi","Opettajan henkilötunnus","Opettajan muodollinen pätevyys","Aikuisten määrä","Ryhmän ikäluokat","Ryhmän koko","Vuorohoitoryhmä","Integroitu erityisryhmä","Osa-aikaiset lapset","Kommentti"]
[]
[]
[]
[]
[null,null,{"$f":"\"Ryhmä: \"&C16","v":"Ryhmä: "}]
[null,null,"Opettajan etunimi","Opettajan sukunimi","Opettajan henkilötunnus","Opettajan muodollinen pätevyys","Aikuisten määrä","Ryhmän ikäluokat","Ryhmän koko","Vuorohoitoryhmä","Integroitu erityisryhmä","Osa-aikaiset lapset","Kommentti"]
[]
[]
[]
[]
[null,null,{"$f":"\"Ryhmä: \"&C17","v":"Ryhmä: "}]
[null,null,"Opettajan etunimi","Opettajan sukunimi","Opettajan henkilötunnus","Opettajan muodollinen pätevyys","Aikuisten määrä","Ryhmän ikäluokat","Ryhmän koko","Vuorohoitoryhmä","Integroitu erityisryhmä","Osa-aikaiset lapset","Kommentti"]
[]
[]
[]
[]
[null,null,{"$f":"\"Ryhmä: \"&C18","v":"Ryhmä: "}]
[null,null,"Opettajan etunimi","Opettajan sukunimi","Opettajan henkilötunnus","Opettajan muodollinen pätevyys","Aikuisten määrä","Ryhmän ikäluokat","Ryhmän koko","Vuorohoitoryhmä","Integroitu erityisryhmä","Osa-aikaiset lapset","Kommentti"]
[]
[]
[]
[]
[null,null,{"$f":"\"Ryhmä: \"&C19","v":"Ryhmä: "}]
[null,null,"Opettajan etunimi","Opettajan sukunimi","Opettajan henkilötunnus","Opettajan muodollinen pätevyys","Aikuisten määrä","Ryhmän ikäluokat","Ryhmän koko","Vuorohoitoryhmä","Integroitu erityisryhmä","Osa-aikaiset lapset","Kommentti"]
[]
[]
[]
[]
[null,null,{"$f":"\"Ryhmä: \"&C20","v":"Ryhmä: "}]
[null,null,"Opettajan etunimi","Opettajan sukunimi","Opettajan henkilötunnus","Opettajan muodollinen pätevyys","Aikuisten määrä","Ryhmän ikäluokat","Ryhmän koko","Vuorohoitoryhmä","Integroitu erityisryhmä","Osa-aikaiset lapset","Kommentti"]
[]
[]
[]
[]
[null,null,{"$f":"\"Ryhmä: \"&C21","v":"Ryhmä: "}]
[null,null,"Opettajan etunimi","Opettajan sukunimi","Opettajan henkilötunnus","Opettajan muodollinen pätevyys","Aikuisten määrä","Ryhmän ikäluokat","Ryhmän koko","Vuorohoitoryhmä","Integroitu erityisryhmä","Osa-aikaiset lapset","Kommentti"]
[]
[]
[]
[]
[null,null,{"$f":"\"Ryhmä: \"&C22","v":"Ryhmä: "}]
[null,null,"Opettajan etunimi","Opettajan sukunimi","Opettajan henkilötunnus","Opettajan muodollinen pätevyys","Aikuisten määrä","Ryhmän ikäluokat","Ryhmän koko","Vuorohoitoryhmä","Integroitu erityisryhmä","Osa-aikaiset lapset","Kommentti"]
[]
[]
[]
[]
[]
[null,null,"4. Lisää tarvittaessa puuttuvat ryhmät"]
[]
[null,null,"Ryhmän nimi","Opettajien lukumäärä ryhmässä"]
[]
[]
[]
[]
[]
[]
[null,null,{"$f":"\"Ryhmä: \"&C95","v":"Ryhmä: "}]
[null,null,"Opettajan etunimi","Opettajan sukunimi","Opettajan henkilötunnus","Opettajan muodollinen pätevyys","Aikuisten määrä","Ryhmän ikäluokat","Ryhmän koko","Vuorohoitoryhmä","Integroitu erityisryhmä","Osa-aikaiset lapset","Kommentti"]
[]
[]
[]
[]
[null,null,{"$f":"\"Ryhmä: \"&C96","v":"Ryhmä: "}]
[null,null,"Opettajan etunimi","Opettajan sukunimi","Opettajan henkilötunnus","Opettajan muodollinen pätevyys","Aikuisten määrä","Ryhmän ikäluokat","Ryhmän koko","Vuorohoitoryhmä","Integroitu erityisryhmä","Osa-aikaiset lapset","Kommentti"]
[]
[]
[]
[]
[null,null,{"$f":"\"Ryhmä: \"&C97","v":"Ryhmä: "}]
[null,null,"Opettajan etunimi","Opettajan sukunimi","Opettajan henkilötunnus","Opettajan muodollinen pätevyys","Aikuisten määrä","Ryhmän ikäluokat","Ryhmän koko","Vuorohoitoryhmä","Integroitu erityisryhmä","Osa-aikaiset lapset","Kommentti"]
[]
[]
[]
[]
[null,null,{"$f":"\"Ryhmä: \"&C98","v":"Ryhmä: "}]
[null,null,"Opettajan etunimi","Opettajan sukunimi","Opettajan henkilötunnus","Opettajan muodollinen pätevyys","Aikuisten määrä","Ryhmän ikäluokat","Ryhmän koko","Vuorohoitoryhmä","Integroitu erityisryhmä","Osa-aikaiset lapset","Kommentti"]
[]
[]
[]
[]
[null,null,{"$f":"\"Ryhmä: \"&C99","v":"Ryhmä: "}]
[null,null,"Opettajan etunimi","Opettajan sukunimi","Opettajan henkilötunnus","Opettajan muodollinen pätevyys","Aikuisten määrä","Ryhmän ikäluokat","Ryhmän koko","Vuorohoitoryhmä","Integroitu erityisryhmä","Osa-aikaiset lapset","Kommentti"]

{"sheet":"ryhmät","index":1,"n_rows":989,"n_cols":11,"rows_kept":989,"cut":false,"hidden":true,"merged":[]}
["toimipaikka","Ryhmä1","Ryhmä2","Ryhmä3","Ryhmä4","Ryhmä5","Ryhmä6","Ryhmä7","Ryhmä8","Ryhmä9","Ryhmä10"]
["Valitse tästä (alasvetovalikko)"]
["Alajärvi_Koulumäen päiväkoti_1.2.246.562.10.73647862728","Pörriäiset","Tuhatjalkaiset"]
["Alajärvi_Käpälämäen päiväkoti_1.2.246.562.10.91471881184","Kissanpennut"]
["Alajärvi_Myllyvainion päiväkoti_1.2.246.562.10.59396159408","Keltasirkut","Viherpeipot"]
["Alajärvi_Mäntymäen päiväkoti_1.2.246.562.10.97430034443","Harakat","Sudenpennut","Touhuryhmä"]
["Askola_Karpalo_1.2.246.562.10.11542620262","Kivipuro"]
["Askola_Puolukka_1.2.246.562.10.12140547832","Puolukka"]
["Askola_Sateenkaari_1.2.246.562.10.84463766695"]
["Askola_Tammenterho_1.2.246.562.10.45086106361","Karhunluola"]
["Aura_Kurki_1.2.246.562.10.67744782334","Metsätähdet"]
["Aura_Pääskynpesä_1.2.246.562.10.47571522680","Sinitiaiset"]
["Eura_Kauttuan päiväkoti_1.2.246.562.10.51502588422","Havut"]
["Eura_Päiväkoti euranrinkilä_1.2.246.562.10.95031038128","Apilat"]
["Eura_Päiväkoti pikkurinkilä_1.2.246.562.10.81680171527","Sudet"]
["Eurajoki_Päiväkoti kuunari_1.2.246.562.10.59954613663","Jungmannit"]
["Eurajoki_Päiväkoti majakka_1.2.246.562.10.11746154134","Hallit","Hylkeet","Norpat"]
["Eurajoki_Päiväkoti metsätähti_1.2.246.562.10.10820513678","Esikot","Karpalot"]
["Eurajoki_Päiväkoti skanssi_1.2.246.562.10.75748674316","Täkkärit"]
["Forssa_Koijärven koulu - päiväkoti_1.2.246.562.10.37873434718","Ilvekset"]
["Forssa_Kurjenpesän päiväkoti_1.2.246.562.10.56830822682","Lounatuulet","Poutapilvet","Revontulet","Sateenkaaret"]
["Forssa_Pihakoivun päiväkoti_1.2.246.562.10.35602583557","Peipposet","Satakielet"]
["Forssa_Päiväkoti augustina_1.2.246.562.10.54466083778","Kehrääjät","Värjärit"]
["Forssa_Päiväkoti axel wahren_1.2.246.562.10.48892803544","Oranssi","Punainen","Vihreät","Violetti"]
["Forssa_Taikatuulen päiväkoti_1.2.246.562.10.22528789567","Lounatuulet","Poutapilvet","Sateenkaaret"]
["Haapavesi_Ahjolan päiväkoti_1.2.246.562.10.94519274883","Naperot"]
["Haapavesi_Onnimannin päiväkoti_1.2.246.562.10.16257363388","Oravanmarjat"]
["Haapavesi_Pikku-martta_1.2.246.562.10.37379503297"]
["Haapavesi_Taikapuisto_1.2.246.562.10.81289780694","Ilvekset"]
["Hailuoto_Päiväkoti onnensaari_1.2.246.562.10.44766422834","Ainoa 5-vuotiaiden ryhmä"]
["Hamina_Neuvottoman päiväkoti_1.2.246.562.10.89073587613","Sinikellot"]
["Hamina_Pyhällön päiväkoti_1.2.246.562.10.48880875447","Ainoa 5-vuotiaiden ryhmä"]
["Hanko_Hangonkylän esikoulu / Hangöby förskola_1817","Majakat","Snäckorna"]
["Hanko_Hanko pohj päiväkoti hangö norra daghem_1.2.246.562.10.68952985619"]
["Hanko_Hyllis förskola_1818","Sälar"]
["Hanko_Lappohjan päiväkoti lappvik daghem_1.2.246.562.10.64284348758","Joutsenet"]
["Hanko_Metsämajan päiväkoti / skogshyddans daghem_1.2.246.562.10.57515002764","Menninkäiset"]
["Harjavalta_Joenrannan päiväkoti_1.2.246.562.10.33365920835","Keltaiset","Oranssit","Punaiset","Siniset"]
["Harjavalta_Vinnarin päiväkoti_1.2.246.562.10.28836561077","Kontiot"]
["Hattula_Päiväkoti marjahattu_1.2.246.562.10.53212375165","Metsämansikat","Metsämarjat","Puolukkapipot"]
["Hattula_Päiväkoti pappilanniemi_1.2.246.562.10.97481629166","Joutsenet","Metsälinnut","Pajulinnut","Satakielet","Satulinnut"]
["Hattula_Päiväkoti viiriäinen_1.2.246.562.10.56809087754","Hapsiaiset","Hilperit","Viikarit"]
["Heinola_Kettukallion päiväkoti_1.2.246.562.10.71153836425","Kuulaakso","Pilvipoukama"]
["Heinola_Sinilähteen päiväkoti_1.2.246.562.10.58740762941","Ainoa 5-vuotiaiden ryhmä"]
["Heinävesi_Päiväkoti päivänpesä_1.2.246.562.10.60042993083"]
["Helsinki_Dh domus_1.2.246.562.10.51663135583","Drakarna","Orangea drakarna"]
["Helsinki_Dh fenix_1.2.246.562.10.35275903363","Pelikaner","Tukaner"]
["Helsinki_Dh pilten_1.2.246.562.10.89466532549","Ekorrarna","Igelkottarna"]
["Helsinki_Dh rastis_1.2.246.562.10.99401692977","Stjärnorna"]
["Helsinki_Dh sesam_1.2.246.562.10.17173254438","Kompasser"]
["Helsinki_Dh sockenstugan_1.2.246.562.10.40535168757","Mymlorna"]
["Helsinki_Pk aapiskukko_1.2.246.562.10.92486247734","Aapola","Timola"]
["Helsinki_Pk alppikylä_1.2.246.562.10.15021121320","Kiitäjät","Loikkijat","Reissaajat","Vaeltajat"]
["Helsinki_Pk arabia_1.2.246.562.10.34792118159","Valmut","Versot"]
["Helsinki_Pk asteri_1.2.246.562.10.51372619737","Kehrääjät","Kimalaiset"]
["Helsinki_Pk auringonkukka_1.2.246.562.10.13837800922","Amiraalit"]
["Helsinki_Pk auringonpilkku_1.2.246.562.10.61185476068","Auringonsäteet"]
["Helsinki_Pk floora_1.2.246.562.10.22068160203","Kastanjakylän eskarit","Pähkinäkylän eskarit"]
["Helsinki_Pk havukka_1.2.246.562.10.40281031605","Havuset","Koalat","Oravat"]
["Helsinki_Pk herttoniemi_1.2.246.562.10.62334999703","Kotkat","Rastaat"]
["Helsinki_Pk herttua_1.2.246.562.10.27993565186","Mymmelit","Nipsut"]
["Helsinki_Pk himmeli_1.2.246.562.10.55774188647","Persikat","Punatulkut","Vihreät"]
["Helsinki_Pk ilomäki_1.2.246.562.10.36338788403","Merihevoset","Merisiilit"]
["Helsinki_Pk immola_1.2.246.562.10.37443064722","Haukat"]
["Helsinki_Pk impivaara_1.2.246.562.10.66845343160","Oravat"]
["Helsinki_Pk jaala_1.2.246.562.10.48838293487","Föörmannit ja laivurit","Seilorit"]
["Helsinki_Pk jousi_1.2.246.562.10.21620699872","Katajat","Pajut","Vaahterat"]
["Helsinki_Pk jäkälä_1.2.246.562.10.88757321851","Hillerit","Sopulit"]
["Helsinki_Pk jätkäsaari_1.2.246.562.10.18813410364"]
["Helsinki_Pk kalasatama_1.2.246.562.10.73508898316","Meduusat","Ruutanat","Silakat"]
["Helsinki_Pk kamomilla_1.2.246.562.10.67577951444","Ainoa 5-vuotiaiden ryhmä"]
["Helsinki_Pk kamppi_1.2.246.562.10.13391476812","Kankurit","Timpurit"]
["Helsinki_Pk kanava_1.2.246.562.10.35452178797","Aallot","Pyörteet","Pärskeet"]
["Helsinki_Pk kankarepuisto_1.2.246.562.10.70954292143","Mangustit","Ryhmä 6"]
["Helsinki_Pk karavaani_1.2.246.562.10.18002595389","Etsijät"]
["Helsinki_Pk kaskisavu_1.2.246.562.10.44201087531","Auringot","Kuunsäteet","Pisarat","Tähdet"]
["Helsinki_Pk katiska_1.2.246.562.10.67358449956","Mustekalat"]
["Helsinki_Pk keula_1.2.246.562.10.13052736017","Joutsenet","Pääskyt","Satakielet"]
["Helsinki_Pk kissankello_1.2.246.562.10.95308368992","Apilat","Esikot"]
["Helsinki_Pk kivelä_1.2.246.562.10.93389690152","Neilikat","Vanilja"]
["Helsinki_Pk kivilinna_1.2.246.562.10.33797778140","Soittoniekat"]
["Helsinki_Pk koralli_1.2.246.562.10.22213196045","Hippiäiset","Kultakalat","Ravut","Ulpukat"]
["Helsinki_Pk korento_1.2.246.562.10.32817247599","Kurjet","Sisiliskot","Teeret"]
["Helsinki_Pk kotikallio_1.2.246.562.10.81604110551","Pihlajat","Tammet"]
["Helsinki_Pk kotitorppa_1.2.246.562.10.75746681818","Kurjet"]
["Helsinki_Pk kulosaari_1.2.246.562.10.35318087166","Kääpiäiset","Sammaleiset"]
["Helsinki_Pk kurki_1.2.246.562.10.28614645118","Maahiset","Muusat"]
["Helsinki_Pk kurkimoisio_1.2.246.562.10.98928296916","Velhot"]
["Helsinki_Pk kylätie_1.2.246.562.10.90221393169","Kaskukulma","Riimiranta","Tarinatupa"]
["Helsinki_Pk kytöniitty_1.2.246.562.10.37019519562","Hepokatit","Muurahaiset"]
["Helsinki_Pk käpylinna_1.2.246.562.10.45334242489","Heinäsirkat","Hepokatit"]
["Helsinki_Pk lammikko_1.2.246.562.10.51327014984","Kaislat","Vehkat"]
["Helsinki_Pk lasten kartano_1.2.246.562.10.87675832312","Ampiaiset","Cobrat","Delfiinit"]
["Helsinki_Pk lauttasaari_1.2.246.562.10.61743228399","Hiirenhännät","Meriasterit"]
["Helsinki_Pk lehdokki_1.2.246.562.10.91141309624"]
["Helsinki_Pk lehtisaari_1.2.246.562.10.96181542158","Meritähdet"]
["Helsinki_Pk leppäsuo_1.2.246.562.10.54261863317","Hillat","Puolukat"]
["Helsinki_Pk leskenlehti_1.2.246.562.10.60903752149","Esiopetusryhmä"]
["Helsinki_Pk liinakko_1.2.246.562.10.66211791083","Pintelit"]
["Helsinki_Pk louhikko_1.2.246.562.10.44586233049","Nipsut"]
["Helsinki_Pk luotsi_1.2.246.562.10.57720369594"]
["Helsinki_Pk maarianmaa_1.2.246.562.10.88783529899","Ketut","Neulaset"]
["Helsinki_Pk marmori_1.2.246.562.10.60464386402","Hattivatit","Kissankäpälät","Korallit","Simpukat"]
["Helsinki_Pk maunula_1.2.246.562.10.22134518582","Mantelit","Muskotit","Nelikat","Pippurit"]
["Helsinki_Pk meri_1.2.246.562.10.33342968642","Miekkavalaat","Pasurit","Sinivalaat"]
["Helsinki_Pk merirasti_1.2.246.562.10.42033616451","Merileijonat"]
["Helsinki_Pk merituuli_1.2.246.562.10.25391495816","Meriharakat"]
["Helsinki_Pk mestari_1.2.246.562.10.22878883366","Nikkarit","Räätälit","Sorvarit","Suutarit"]
["Helsinki_Pk minttu_1.2.246.562.10.35071050278","Naalit","Saukot","Sudet"]
["Helsinki_Pk myllynratas_1.2.246.562.10.13434062066","Matkailijat","Retkeilijät"]
["Helsinki_Pk myllytonttu_1.2.246.562.10.90299364563","Metsäpeikot","Metsätontut","Pihatontut"]
["Helsinki_Pk nestori_1.2.246.562.10.41257724660","Otsot","Pellervot","Vellamot"]
["Helsinki_Pk neulanen_1.2.246.562.10.59307368791","Esiopetusryhmä a","Esiopetusryhmä c","Esiopetusryhmä d","Esiopetusryhmä h"]
["Helsinki_Pk norppa_1.2.246.562.10.58059815306","Meritähdet","Teeret"]
["Helsinki_Pk pacius_1.2.246.562.10.21931857417","Pajut","Täryt","Väkkärät"]
["Helsinki_Pk pajalahti_1.2.246.562.10.17082739719","Taikametsä","Viskari"]
["Helsinki_Pk pakila_1.2.246.562.10.44670830247"]
["Helsinki_Pk pehtoori_1.2.246.562.10.31929641392","Huuhkajat","Kivitaskut"]
["Helsinki_Pk pentinkulma_1.2.246.562.10.71869428913","Torppa"]
["Helsinki_Pk perttu_1.2.246.562.10.27919231442","Kissankulma","Vaahteramäki"]
["Helsinki_Pk pihlaja_1.2.246.562.10.10938622767","Korianterit","Pähkinät"]
["Helsinki_Pk pihlajamäki_1.2.246.562.10.33408424092","Revontulet","Salamat","Sateenkaaret","Tähdenlennot"]
["Helsinki_Pk pikku-veräjä_1.2.246.562.10.61890739917","Päiväperhoset"]
["Helsinki_Pk porolahti_1.2.246.562.10.88761479182","Majavat","Norpat"]
["Helsinki_Pk purje_1.2.246.562.10.96389294297"]
["Helsinki_Pk raitti_1.2.246.562.10.66848063161","Villiäiset","Väkkärät"]
["Helsinki_Pk roihuvuori_1.2.246.562.10.75906922457","Kaniner","Siilit/jänikset"]
["Helsinki_Pk ruoholahden lastentalo_1.2.246.562.10.73749830391","Maahiset"]
["Helsinki_Pk ruskeasuo_1.2.246.562.10.77233724853","Peipot","Svalorna"]
["Helsinki_Pk ruuti_1.2.246.562.10.24439126624","Kuunmuruset"]
["Helsinki_Pk rööperi_1.2.246.562.10.93061212598","Leijonat","Pikkukarhut"]
["Helsinki_Pk saana_1.2.246.562.10.83875239176","Halti","Kenestupa","Mukkavaara","Taivaskero","Vatikuru"]
["Helsinki_Pk sakara_1.2.246.562.10.66914054318","Keltasakarat","Punasakarat"]
["Helsinki_Pk sakarinmäki_1.2.246.562.10.73878963658","Metsäkarhut","Muurahaiset"]
["Helsinki_Pk saniainen_1.2.246.562.10.32620516602","Ihaat","Kengut"]
["Helsinki_Pk santahamina_1.2.246.562.10.41127393514","Leppäkertut","Muurahaiset"]
["Helsinki_Pk satakieli_1.2.246.562.10.18194214146","Tukaanit","Tähkä"]
["Helsinki_Pk satama_1.2.246.562.10.14913583531","Faanarit","Jäänmurtajat"]
["Helsinki_Pk satulinna_1.2.246.562.10.96546781566","Aamuruskot"]
["Helsinki_Pk savela_1.2.246.562.10.29877931377","Taatelit"]
["Helsinki_Pk seulanen_1.2.246.562.10.52384516911","Galaksit","Pyrstötähdet"]
["Helsinki_Pk siilitie_1.2.246.562.10.48496331249","Helmipöllöt","Jänikset","Ketut"]
["Helsinki_Pk sinivuori_1.2.246.562.10.26064057230","Hattivatit","Hobitit"]
["Helsinki_Pk tahvonlahti_1.2.246.562.10.92818775329","Metsäjänikset","Punaiset"]
["Helsinki_Pk tammi_1.2.246.562.10.29229090682","Omenatarha","Roskut"]
["Helsinki_Pk tammisalo_1.2.246.562.10.43276597283"]
["Helsinki_Pk tapanila_1.2.246.562.10.51778278922","Kastehelmet","Puhurit","Sateenkaaret"]
["Helsinki_Pk tilhi_1.2.246.562.10.35754276216","Leivoset","Peukaloiset"]
["Helsinki_Pk toivo_1.2.246.562.10.53885788199","Korallit","Rubiinit/hurrikaanit","Rubiinit/tornadot"]
["Helsinki_Pk torpparinmäki_1.2.246.562.10.12124722682","Kurjet"]
["Helsinki_Pk tuorinniemi_1.2.246.562.10.67990627290","Kalat","Norpat"]
["Helsinki_Pk tuuli_1.2.246.562.10.61322467251","Tuulimylly","Tuuliviiri"]
["Helsinki_Pk vaapukka_1.2.246.562.10.35987280753","Auringonlaskut","Hurrikaanit","Merituulet","Pyrstötähdet","Revontulet","Sateenkaaret","Tuulenpuuskat","Vesipisarat"]
["Helsinki_Pk valkea_1.2.246.562.10.84628698353","Metsätiuhdit"]
["Helsinki_Pk vallesmanni_1.2.246.562.10.14380102070","Lukkarit","Räätälit"]
["Helsinki_Pk vaskiniitty_1.2.246.562.10.48535115959","Amiraalit"]
["Helsinki_Pk viikinki_1.2.246.562.10.48826493719","Tuuloset","Vihurit","Vimpulat"]
["Helsinki_Pk vikkeri_1.2.246.562.10.53445112484","Pilvenhattara","Pohjantähti","Päivänpaiste"]
["Helsinki_Pk virkkula_1.2.246.562.10.53388264961","Huvikumpu"]
["Helsinki_Pk viskuri_1.2.246.562.10.81878341650","Ohrat","Rukiit"]
["Helsinki_Pk yliskylä_1.2.246.562.10.31037743676","Helmipöllöt","Hopeatäplät","Kultasiivet","Käpytikat","Puukiipijät"]
["Helsinki_Pk ylä-malmi_1.2.246.562.10.28393933768","Poliisit","Sateenkaarisydämet"]
["Huittinen_Huvikummun päiväkoti_1.2.246.562.10.76921761367","Heikun keikun"]
["Huittinen_Kuninkaisten päiväkoti_1.2.246.562.10.71251332806","Viskarit"]
["Huittinen_Vampulan päiväkoti_1.2.246.562.10.93404087830","Unikot"]
["Humppila_Päiväkoti päivänpaiste_1.2.246.562.10.56464540402","Viikarit"]
["Hämeenlinna_Eteläisten päiväkoti_1.2.246.562.10.32986349028","Hahtuvat","Helmiäiset","Untuvat"]
["Hämeenlinna_Hattelmalan päiväkoti_1.2.246.562.10.65604628613","Hulivilit"]
["Hämeenlinna_Hirsimäen päiväkoti_1.2.246.562.10.85501065636","Heinähatut","Metsänhaltiat","Naavaparrat","Tuohitossut"]
["Hämeenlinna_Iittalan päiväkoti_1.2.246.562.10.20138852296","Kaarnat","Kaislat","Kastehelmet","Kimarat","Kuurat"]
["Hämeenlinna_Jaarlin päiväkodit tarvasmäki_1.2.246.562.10.14758576384","Kärrynpyörät","Viskarit"]
["Hämeenlinna_Jaarlin päiväkoti enkkula_1.2.246.562.10.89982950779"]
["Hämeenlinna_Jaarlin päiväkoti poltinaho_1.2.246.562.10.96905860332","Ceejappi","Deejappi","Metsot"]
["Hämeenlinna_Jukola_1.2.246.562.10.98524109786","Loikkalaamat"]
["Hämeenlinna_Kaivokadun päiväkoti_1.2.246.562.10.46668411146","Hapsuhännät","Sammaltossut"]
["Hämeenlinna_Kankaantaan päiväkoti_1.2.246.562.10.72182255132","Kontiot","Otsot"]
["Hämeenlinna_Karhuryhmän päiväkoti_1.2.246.562.10.15860224417","Karhuryhmä"]
["Hämeenlinna_Katuman päiväkoti_1.2.246.562.10.67050425551","Metsänväki"]
["Hämeenlinna_Kutalan päiväkoti_1.2.246.562.10.53618091986","Aittatontut","Hiirenvirnat","Kaislat","Kotitontut","Metsätontut","Myllytontut","Pihatontut","Riihitontut","Sinivuokot","Ulpukat"]
["Hämeenlinna_Lammin päiväkoti_1.2.246.562.10.32750401542","Hiippalakit","Pellavaiset"]
["Hämeenlinna_Liivuoren päiväkoti_1.2.246.562.10.64971949249","Impivaara","Männistö","Toukola","Viertola"]
["Hämeenlinna_Melukylän päiväkoti_1.2.246.562.10.11458273411","Välitalo"]
["Hämeenlinna_Ojoisten päiväkoti_1.2.246.562.10.11250727648","Revontulet"]
["Hämeenlinna_Planeetta_1.2.246.562.10.21399423223","Hurrikaanit"]
["Hämeenlinna_Rengon päiväkoti_1.2.246.562.10.88847851420","Ilvestupsut","Ketunhännät","Metsäilvekset","Otsot"]
["Hämeenlinna_Solvikin päiväkoti_1.2.246.562.10.78994360754","Maahiset","Mettiset","Myttyset","Vetehiset"]
["Ii_Alarannan päiväkoti_1.2.246.562.10.77030968877","Lumpeet"]
["Ii_Haminan päiväkoti_1.2.246.562.10.24770302867","Vanamot"]
["Ii_Harjuntähden päiväkoti_1.2.246.562.10.24578412132"]
["Ii_Kuivaniemen päiväkoti_1.2.246.562.10.10790743891","Ainoa 5-vuotiaiden ryhmä"]
["Ii_Lakson päiväkoti_1.2.246.562.10.14318544872","Mustikat"]
["Ii_Nikkarin päiväkoti_1.2.246.562.10.60061548024","Nuppuset","Peikkoset","Soraset"]
["Ii_Päiväkoti ida valpuri_1.2.246.562.10.16881353359"]
["Ii_Päiväkoti tikkaset_1.2.246.562.10.87464405395","Pääskyset"]
["Iitti_Peltohiiren päiväkoti_1.2.246.562.10.36496140736","Peipot"]
["Iitti_Päiväkoti nuppula_1.2.246.562.10.47502279723","Vanamot"]
["Iitti_Päiväkoti pikku-vieteri_1.2.246.562.10.86985378321","Ketunleivät","Kurjenpolvet"]
["Ikaalinen_Kakkospesä_1.2.246.562.10.93227011801","Hopeatäplät","Kultasiivet"]
["Ikaalinen_Kilvakkala_1.2.246.562.10.88294474726","Kuusipirtin viskarit"]
["Ikaalinen_Valkean ruusun päiväkoti_1.2.246.562.10.30952868484","Ainoa 5-vuotiaiden ryhmä"]
["Ilmajoki_Ahonkylän esiopetus_1.2.246.562.10.20785621382","Melukylä"]
["Ilmajoki_Käpälämäen päiväkoti_1.2.246.562.10.36213361086","Otsola"]
["Ilmajoki_Neiron päiväkoti_1.2.246.562.10.39649580493","Viskarit"]
["Ilmajoki_Peuralan päiväkoti_1.2.246.562.10.16464097928","Herrala"]
["Ilmajoki_Päiväkoti tammikuhnala_1.2.246.562.10.23236381556","Hipsuvarpaat","Menninkäiset","Tiitiäiset"]
["Imatra_Imatrankosken päiväkoti_1.2.246.562.10.56351081999","Menninkäiset"]
["Imatra_Mansikkalan vuoropäiväkoti_1.2.246.562.10.54675951237","Pajut"]
["Imatra_Meltolan päiväkoti_1.2.246.562.10.36397164918","Liilat"]
["Imatra_Rajapatsaan päiväkoti_1.2.246.562.10.40924574607","Kissankulma"]
["Imatra_Raution päiväkoti_1.2.246.562.10.72845381861","Muksut","Vintiöt"]
["Imatra_Tainionkosken päiväkoti_1.2.246.562.10.29249507129","Hymyhuulet","Veskari 1","Veskari 2"]
["Imatra_Vuoksenniskan päiväkoti_1.2.246.562.10.31204377415","Järvi","Metsä"]
["Inari_Saariselän päiväkoti_1.2.246.562.10.46842172887","Seikkalijat"]
["Joensuu_Englanninkielinen leikkikoulu_1.2.246.562.10.20617502156"]
["Joensuu_Hammaslahden päiväkoti hippula_1.2.246.562.10.98035840085","Haitulat","Helmiäiset","Hipsukat","Hulivilit"]
["Joensuu_Hukanpesä_1.2.246.562.10.38546077785","Jäkälämäki","Metsälampi","Naavapolku","Sammalnotko"]
["Joensuu_Huvikumpu_1.2.246.562.10.34267380649","Kiurut","Pääskyt"]
["Joensuu_Kanervalan päiväkoti_1.2.246.562.10.83320862457","Leppäkertut"]
["Joensuu_Kiihtelysvaaran päiväkoti_1.2.246.562.10.24166382234","Ainoa 5-vuotiaiden ryhmä"]
["Joensuu_Linnunlahden päiväkoti_1.2.246.562.10.27930766665","Keltasirkut","Kottaraiset","Satakielet","Tilhet"]
["Joensuu_Marjala_1.2.246.562.10.22288305380","Vintiöt"]
["Joensuu_Marjalan päiväkoti_1.2.246.562.10.49949699208","Kullerot"]
["Joensuu_Niinivaaran vuoropäiväkoti_1.2.246.562.10.49547313699","Pilvilaakso","Taikalampi","Tähtitaivas","Viljapelto"]
["Joensuu_Niittylahden päiväkoti_1.2.246.562.10.15452323460","Rönsyröllit"]
["Joensuu_Ollilan päiväkoti_1.2.246.562.10.24590885208","Muruset","Timpurit"]
["Joensuu_Pajakadun päiväkoti_1.2.246.562.10.68425828446","Riiminikkarit"]
["Joensuu_Pataluodon päiväkoti_1.2.246.562.10.37403360144","Ankkurit","Laivurit","Matruusit"]
["Joensuu_Penttilän päiväkoti_1.2.246.562.10.26692199149","Heinähatut","Mussukat","Onnimannit","Vesselit"]
["Joensuu_Petäikkölän päiväkoti_1.2.246.562.10.17431786049","Hepokatit"]
["Joensuu_Reijolan päiväkoti_1.2.246.562.10.34409288684","Hipsuvarpaat","Vilttitossut"]
["Joensuu_Sinkkolan päiväkoti_1.2.246.562.10.94377541555","Villivarsat"]
["Joensuu_Soutajanpuiston päiväkoti_1.2.246.562.10.84571269574","Korpipuolukat","Mustikat"]
["Joensuu_Tuupovaaran päiväkoti_1.2.246.562.10.61890379920","Muksut"]
["Joensuu_Utran päiväkoti_1.2.246.562.10.17481110207","Sateenkaaret"]
["Jokioinen_Mäntypuiston päiväkoti_1.2.246.562.10.47803077479","Käpyset"]
["Jokioinen_Teerimäen päiväkoti_1.2.246.562.10.20057791020","Miina","Punatulkut","Talitintit"]
["Joroinen_Kuvansin päiväkoti_1.2.246.562.10.76118311125","Sankarit"]
["Joroinen_Päiväkoti pyrri_1.2.246.562.10.15777647643","Hyrrä/väläkyt","Velemut","Väläkyt"]
["Joutsa_Päiväkoti koivukumpu_1.2.246.562.10.49709135914","Esikot","Veskarit"]
["Jyväskylä_Aittorinteen päiväkoti_1.2.246.562.10.75693488944","Pilvilinna"]
["Jyväskylä_Haapaniemen päiväkoti_1.2.246.562.10.64809876143","Kimalaiset","Leppäkertut"]
["Jyväskylä_Halssilan päiväkoti_1.2.246.562.10.25154420779","Tiaisenpönttö","Tikankolo"]
["Jyväskylä_Haukkamäen päiväkoti_1.2.246.562.10.76797952587"]
["Jyväskylä_Huhtasuon päiväkoti_1.2.246.562.10.14868083636","Ketunkolo","Siilinmaja","Siilinmaja punaninen","Siilinmaja sininen","Siilinmaja vihreät"]
["Jyväskylä_Janakan päiväkoti_1.2.246.562.10.99418059087","Perhoset","Puput","Pöllöt"]
["Jyväskylä_Kangasvuoren päiväkoti_1.2.246.562.10.88920786907","Kävyt","Neulanen","Pihlajamarja"]
["Jyväskylä_Keljonkankaan päiväkoti_1.2.246.562.10.52765005708","Lakat","Vadelmat"]
["Jyväskylä_Keltinmäen päiväkoti_1.2.246.562.10.16963089673","Poutapirtti","Tähtitarha"]
["Jyväskylä_Kirrin päiväkoti_1.2.246.562.10.74610627205","Kiitäjät","Ritarit"]
["Jyväskylä_Korpilahden päiväkoti_1.2.246.562.10.91311457161","Majakat","Sahurit"]
["Jyväskylä_Kortepohjan päiväkoti_1.2.246.562.10.35573090582","Karpalot","Kipinät","Liekit","Myrskyt","Puhurit"]
["Jyväskylä_Kotimäen päiväkoti_1.2.246.562.10.24509883021","Korpit","Kuukkelit"]
["Jyväskylä_Kukkumäen päiväkoti_1.2.246.562.10.36276102591","Honkametsä","Käpylehto"]
["Jyväskylä_Kuokkalan päiväkoti_1.2.246.562.10.12630591407","Jokerit","Lukkarit","Räpylät"]
["Jyväskylä_Kypärämäen päiväkoti_1.2.246.562.10.82825841206","Karpalot","Keltasirkut","Peipposet","Puolukat"]
["Jyväskylä_Lahjaharjun päiväkoti_1.2.246.562.10.86215126672","Muumit","Taikametsä keltainen"]
["Jyväskylä_Liinalammin päiväkoti_1.2.246.562.10.99272467590","Aavikkoketut","Karhunpesä","Napaketut","Riekot"]
["Jyväskylä_Luhtisen päiväkoti_1.2.246.562.10.46329831351","Pepit"]
["Jyväskylä_Mannilan päiväkoti_1.2.246.562.10.72481710092","Ratsut","Villihepat"]
["Jyväskylä_Muuratsalon päiväkoti_1.2.246.562.10.34288647927","Lokit"]
["Jyväskylä_Myllytuvan päiväkoti_1.2.246.562.10.35265636247","Punatulkut","Sinitintit"]
["Jyväskylä_Nenäinniemen päiväkoti_1.2.246.562.10.43380161497","Essut","Naperot"]
["Jyväskylä_Neulaskankaan päiväkoti_1.2.246.562.10.60229396522","Kivat","Lorunapit","Mainiot"]
["Jyväskylä_Nisulan päiväkoti_1.2.246.562.10.22226687626","Nisukissat"]
["Jyväskylä_Palokunnanmäen päiväkoti_1.2.246.562.10.74900730305","Liekit"]
["Jyväskylä_Pappilanvuoren päiväkoti_1.2.246.562.10.26245161976","Satakielet","Tiirat"]
["Jyväskylä_Puistokadun päiväkoti_1.2.246.562.10.20196587461","Idut"]
["Jyväskylä_Puuppolan päiväkoti_1.2.246.562.10.35895444293","Auringot","Seikkailijat","Siilit"]
["Jyväskylä_Ristonmaan päiväkoti_1.2.246.562.10.91739429636","Kulmakamari","Piilopirtti"]
["Jyväskylä_Ritoniityn päiväkoti_1.2.246.562.10.26734938876","Säteet"]
["Jyväskylä_Savulahden päiväkoti_1.2.246.562.10.64595910569","Koivulehto","Majavat","Mäntyhaka"]
["Jyväskylä_Säynätsalon päiväkoti_1.2.246.562.10.56500722493","Kummelit","Mastot","Reelingit","Reimarit"]
["Jyväskylä_Taikalampun päiväkoti_1.2.246.562.10.14747547660","Riimiritarit","Runoratsut","Taivaantakojat"]
["Jyväskylä_Tammirinteen päiväkoti_1.2.246.562.10.24475503892","Leppäkertut","Peipposet"]
["Jyväskylä_Tapiolan päiväkoti_1.2.246.562.10.59792484848","Lounatuulet","Tuuliaiset"]
["Jyväskylä_Tikkalan päiväkoti_1.2.246.562.10.41772137794","Viskarit"]
["Jyväskylä_Verso_1.2.246.562.10.89887876897","Menninkäiset","Tuutiaiset"]
["Jyväskylä_Vesangan päiväkoti_1.2.246.562.10.50358592207","Lorulinnut"]
["Jyväskylä_Väinölän päiväkoti_1.2.246.562.10.84250049735","Ilvekset","Pöllöt"]
["Jyväskylä_Wessmanninmäen päiväkoti_1.2.246.562.10.35247172162","Karpit","Korennot"]
["Jämijärvi_Pääskyn päiväkoti_1.2.246.562.10.88578575230"]
["Kaarina_Hakametsän päiväkoti_1.2.246.562.10.54708847931","Riionpesä"]
["Kaarina_Kuusiston päiväkoti_1.2.246.562.10.69607237646","Merihevoset"]
["Kaarina_Nappulalaakson päiväkoti_1.2.246.562.10.95901107029"]
["Kaarina_Nappulalinnan päiväkoti_1.2.246.562.10.21833933308","Sinivuokot"]
["Kaarina_Omppula_1.2.246.562.10.73738763140","Viikarit"]
["Kaarina_Pihlajanmarjan päiväkoti_1.2.246.562.10.29908504821","Sinitiaiset"]
["Kaarina_Voivalan päiväkoti_1.2.246.562.10.90766127790","Alppiruusut","Metsätähdet","Valkovuokot"]
["Kaarina_Vuorokoti rinkeli_1.2.246.562.10.43000232207","Jässikät"]
["Kajaani_Huuhkajavaaran päiväkoti_1.2.246.562.10.20023124959","Varpuset"]
["Kajaani_Kuurnan päiväkoti_1.2.246.562.10.55011388463","Vikkelät"]
["Kajaani_Kätönlahden päiväkoti_1.2.246.562.10.22228806703","Valtterit"]
["Kajaani_Lehtikankaan päiväkoti_1.2.246.562.10.24404608085","Esikot","Leinikit","Tähtimöt"]
["Kajaani_Lohtajan päiväkoti_1.2.246.562.10.60325067357","Menninkäiset"]
["Kajaani_Nakertajan päiväkoti_1.2.246.562.10.11873800624","Kissankellot","Metsätähdet"]
["Kajaani_Päiväkoti pikkutassu_1.2.246.562.10.52582014669","Vauhtiviikset"]
["Kajaani_Seminaarin päiväkoti_1.2.246.562.10.38318388998","Kuusamat","Kuuset","Vaahterat"]
["Kajaani_Valonkatu_1.2.246.562.10.25409602288","Säihkyt","Välkyt"]
["Kalajoki_Marttilantien päiväkoti_1.2.246.562.10.40539352613","Lumpeet","Rapuset"]
["Kalajoki_Päiväkoti arkki oy_1.2.246.562.10.59450042912","Ketut"]
["Kalajoki_Päiväkoti jes oy_1.2.246.562.10.10033023630","Ainoa 5-vuotiaiden ryhmä"]
["Kalajoki_Päiväkoti mäntylä_1.2.246.562.10.84880034099","Kaarnaset"]
["Kalajoki_Päiväkoti satumajakka_1.2.246.562.10.25270878959","Amiraalit","Laivurit"]
["Kalajoki_Touhula kalajoki_1.2.246.562.10.52457793363","Timantit"]
["Kangasala_Harjunsalon päiväkoti_1.2.246.562.10.62496237678","Mustikat","Napit"]
["Kangasala_Kuhmalahden päiväkoti_1.2.246.562.10.25592594508","Kurjet"]
["Kangasala_Liuksialan päiväkoti_1.2.246.562.10.70172119458","Telkät"]
["Kangasala_Omenatarhan päiväkoti_1.2.246.562.10.41933641023","Viherpeukalot","Viikarit"]
["Kangasala_Suoraman päiväkoti_1.2.246.562.10.46055536711","Pillipiiparit","Posetiivarit","Taikurit","Veijarit"]
["Kangasala_Tursolan päiväkoti_1.2.246.562.10.86768533928","Mesikämmenet","Nallekarhut","Otsot"]
["Kangasala_Vatialan päiväkoti_1.2.246.562.10.77778741700","Kerttuset","Kiurut","Pääskyt","Västäräkit"]
["Kaskinen_Päiväkoti ankkuri_1.2.246.562.10.34795170520","Mustekalat","Sjörövare"]
["Kauhava_Metsäkulman päiväkoti_1.2.246.562.10.14978479229","Puput","Tintit"]
["Kauhava_Ylihärmän päiväkoti_1.2.246.562.10.35863527061","Mustikat"]
["Kauniainen_Pikku akatemia_1.2.246.562.10.60288658671","Kultakalat","Sisiliskot"]
["Kauniainen_Sansinpellon päiväkoti_1.2.246.562.10.71694426736","Joutsenet","Kurjet"]
["Kaustinen_Pajalan päiväkoti_1.2.246.562.10.73769250108","Pulmuset","Punatulkut"]
["Kaustinen_Puumalan esiopetusyksikkö_1.2.246.562.10.31031302859"]
["Kemijärvi_Jyvälänpuiston päiväkoti_1.2.246.562.10.39167924065","Kuukkelit","Peukaloiset"]
["Kemijärvi_Särkelän päiväkoti_1.2.246.562.10.29276613451","Muksut"]
["Keminmaa_Kellomäen päiväkoti_1.2.246.562.10.86550978018","Poutapilvet","Päivänpaisteet"]
["Keminmaa_Kirkonmäen päiväkoti_1.2.246.562.10.49954202302","Huvikumpu","Vaahteramäki"]
["Keminmaa_Lautiosaaren päiväkoti_1.2.246.562.10.18976648446"]
["Kemiönsaari_Hulta daghem hulta päiväkoti_1.2.246.562.10.85202313715","Mymlornas förskola","Tuutikki"]
["Kemiönsaari_Lillgården_1.2.246.562.10.82442006506"]
["Kemiönsaari_Silva daghem silva päiväkoti_1.2.246.562.10.12847055097","Bävern","Ilvekset"]
["Kemiönsaari_Sofia daghem_1.2.246.562.10.71257427030"]
["Kempele_Ylikylän päiväkoti_1.2.246.562.10.75518331709","Haltijat","Kastehelmet","Lounatuulet","Naavaset","Poutapilvet","Vipuset"]
["Keuruu_Aurinkolinna_1.2.246.562.10.55339446878","Nallenautit","Runoratsut","Veijarit"]
["Keuruu_Haapamäen päiväkoti_1.2.246.562.10.28060613008","Menninkäiset"]
["Keuruu_Lapin päiväkoti_1.2.246.562.10.94618078821","Siepakat"]
["Keuruu_Tähtitarha_1.2.246.562.10.50604499355","Mustikat","Vadelmat"]
["Kirkkonummi_Jokirinteen päiväkoti_1.2.246.562.10.41805638354","Kehrääjät","Kertut","Varpuset","Västäräkit"]
["Kirkkonummi_Kantvikin päiväkoti_1.2.246.562.10.70893350978","Hattarat","Nekut"]
["Kirkkonummi_Kartanonrannan päiväkoti_1.2.246.562.10.77007333048","Lystilä"]
["Kirkkonummi_Kolsarin päiväkoti_1.2.246.562.10.85148176911","Picassot","Räppääjät","Vilttitossut"]
["Kirkkonummi_Laajakallion päiväkoti_1.2.246.562.10.19570186700","Peikot"]
["Kirkkonummi_Masalan päiväkoti_1.2.246.562.10.25919598943","Tuulispäät","Tähdenlennot"]
["Kirkkonummi_Nissnikun päiväkoti_1.2.246.562.10.11838479977","Leijat","Nopsanurkka","Vauhtivintti"]
["Kirkkonummi_Norlandia linna_1.2.246.562.10.26142756530","Viskarit"]
["Kirkkonummi_Norlandia tenava-talo_1.2.246.562.10.86153412662"]
["Kirkkonummi_Sjökulla daghem_1.2.246.562.10.91991918813","Alver"]
["Kirkkonummi_Veikkolan päiväkoti_1.2.246.562.10.69096993915","Pyrstötähdet","Revontulet"]
["Kirkkonummi_Vuorenmäen päiväkoti_1.2.246.562.10.96691182149","Metsämaahiset","Naavatassut","Vuorenhaltijat"]
["Kitee_Kesälahden päiväkoti_1.2.246.562.10.33160331758","Viskarit"]
["Kitee_Puhoksen päiväkoti_1.2.246.562.10.65637729511","Esiopetus"]
["Kitee_Päiväkoti kieppi_1.2.246.562.10.53707137658","Mesikämmenet","Pikkukarhut"]
["Kiuruvesi_Kuorevirran esikoulu ja varhaiskasvatusyksikkö_1.2.246.562.10.48769014993","Mariannet"]
["Kiuruvesi_Päiväkoti päivänkakkara_1.2.246.562.10.56024118517","Seikkailijat"]
["Kiuruvesi_Satumetsän päiväkoti_1.2.246.562.10.22830147835","Sirkut"]
["Kiuruvesi_Tempo_1.2.246.562.10.76021647326","Taikahuilut"]
["Kokkola_Halkokarin päiväkoti_1.2.246.562.10.13115998752","Kipparit","Messipojat","Pursimiehet"]
["Kokkola_Koivuhaan päiväkoti_1.2.246.562.10.31575756882"]
["Kokkola_Koivurinteen päiväkoti_1.2.246.562.10.52412447659","Oravat"]
["Kokkola_Kyrkbackens daghem_1.2.246.562.10.11719597400","Småstjärnorna"]
["Kokkola_Pajulinnun päiväkoti_1.2.246.562.10.47900710527","Rubiinit","Safiirit","Timantit"]
["Kokkola_Peltokorven päiväkoti_1.2.246.562.10.84718510732","Metsähiiret"]
["Kokkola_Tulliharjun päiväkoti_1.2.246.562.10.73059789625","Laulupuu","Runokoppa","Tarinatupa"]
["Kokkola_Ulkometsän päiväkoti_1.2.246.562.10.27163463097","Käpytikat","Peltohiiret","Vesimyyrät"]
["Kokkola_Ykspihlajan päiväkoti_1.2.246.562.10.17165832316","Merikarhut","Potin vekarat"]
["Kokkola_Öja daghem_1.2.246.562.10.84860774623"]
["Kontiolahti_Onttolan päiväkoti_1.2.246.562.10.62818146953","Hippula","Vekkula"]
["Kontiolahti_Peltosirkun päiväkoti_1.2.246.562.10.32701161005","Metsätähdet","Perhepäivähoito","Ratamot"]
["Kontiolahti_Päivänpaiste_1.2.246.562.10.12283831787","Orvokit"]
["Koski tl_Päiväkoti naavatassu_1.2.246.562.10.41459219337","Tutkijat"]
["Kristiinankaupunki_Dagsmark daghem/päiväkoti_1.2.246.562.10.89209572497"]
["Kristiinankaupunki_Härkmeri daghem/päiväkoti_1.2.246.562.10.12676588556","Ugglorna"]
["Kristiinankaupunki_Kristinestads daghem kristiinankaupungin päiväkoti_1.2.246.562.10.92857987934","Lilliputt","Zebra"]
["Kristiinankaupunki_Lappfjärds daghem lapväärtin päiväkoti_1.2.246.562.10.97105257592","Björnarna","Karhut"]
["Kruunupyy_Sjöglimtens daghem_1.2.246.562.10.80390045542","Daggkåpans"]
["Kruunupyy_Slottebo daghem_1.2.246.562.10.33939354073","Saga"]
["Kruunupyy_Solrosen daghem_1.2.246.562.10.68429568030","Hoppetossan"]
["Kuhmo_Päiväkoti satumetsä_1.2.246.562.10.23633440401","Menninkäiset","Päivänsäteet","Satumatsän"]
["Kuhmo_Vuoropäiväkoti kuusenkuiske_1.2.246.562.10.96478196460","Käpälät","Tassut"]
["Kurikka_Iloniemen päiväkoti_1.2.246.562.10.20664460621","Kastehelmet"]
["Kurikka_Jyrän päiväkoti_1.2.246.562.10.52583342473","Esikot","Leinikit","Vanamot"]
["Kurikka_Kankaan päiväkoti_1.2.246.562.10.97588250932","Oranssi olkkari","Punainen paja"]
["Kurikka_Luopajärven päiväkoti_1.2.246.562.10.73376765316"]
["Kurikka_Nummen päiväkoti_1.2.246.562.10.94213168837","Siilit"]
["Kustavi_Suotorpan päiväkoti_1.2.246.562.10.85415572511","Viikarit"]
["Lahti_Ahtialan päiväkoti_1.2.246.562.10.92757691883","Hallahylkeet","Kuurakauriit"]
["Lahti_Erstan päiväkoti_1.2.246.562.10.14169809804","Meiramit","Mintut","Unikot"]
["Lahti_Hennalan päiväkoti_1.2.246.562.10.19496679549","Lorujen lähde","Satujen saari"]
["Lahti_Herrasmannin päiväkoti_1.2.246.562.10.63623787338","Hattiaiset","Jäkälämäki","Kanervakumpu","Reppulit"]
["Lahti_Humpulan päiväkoti_1.2.246.562.10.76414148015","Karhukumpu","Kettukallio","Kuusikukkula","Mustikkametsä"]
["Lahti_Jalkarannan päiväkoti_1.2.246.562.10.86006300585","Koivikko","Metsätontut","Myllytontut","Männikkö"]
["Lahti_Kanervan päiväkoti_1.2.246.562.10.59865201954","Korennot","Majavat","Norpat"]
["Lahti_Kariston päiväkoti_1.2.246.562.10.72739713096","Tarinalaakso"]
["Lahti_Kilpiäisten päiväkoti_1.2.246.562.10.88868081477","Laululeijonat","Lorukoirat","Tarinatiikerit"]
["Lahti_Kytölän päiväkoti_1.2.246.562.10.54822567373","Kerttuset","Kivitaskut","Peipposet"]
["Lahti_Launeen päiväkoti_1.2.246.562.10.31585986768","Keltasirkut","Kerttuset","Peipposet","Pääskyset","Talitintit"]
["Lahti_Leikkituvan päiväkoti_1.2.246.562.10.55659838357","Hallahylkeet","Usvaketut"]
["Lahti_Liipolan päiväkoti, monitoimitalo onni_1.2.246.562.10.63834237222","Heinähatut","Kelokuja","Tiitiäiset"]
["Lahti_Lähteen päiväkoti_1.2.246.562.10.26333091739","Kastehelmet","Sinisimpukat","Sudenkorennot"]
["Lahti_Metsäkankaan päiväkoti_1.2.246.562.10.55401730845","Karhunluola","Kettukukkula","Pöllönpuu"]
["Lahti_Mukkulan päiväkoti_1.2.246.562.10.14077494624","Kehrääjät","Kiitäjät","Korennot"]
["Lahti_Möysän päiväkoti_1.2.246.562.10.30669276914","Koivukumpu","Usvalaakso"]
["Lahti_Paavolan päiväkoti_1.2.246.562.10.49779795118","Menninkäiset","Metsola","Päivänsäteet"]
["Lahti_Rakokiven päiväkoti_1.2.246.562.10.67141930635","Hipsuvarpaat","Ketunkäpälät"]
["Lahti_Renkomäen päiväkoti_1.2.246.562.10.87813584841","Siruset"]
["Lahti_Riihelän päiväkoti_1.2.246.562.10.26474086423","Karhumäki","Riihiketut"]
["Lahti_Ruoriniemen päiväkoti_1.2.246.562.10.90395290324","Ainoa 5-vuotiaiden ryhmä"]
["Lahti_Sipuran päiväkoti_1.2.246.562.10.40126612320","Kaislaranta","Kettukivi","Kuusimetsä","Satukaivo"]
["Lahti_Tenava-tonttilan päiväkoti_1.2.246.562.10.92437091819","Kettukallio","Varsavuori"]
["Lahti_Villa piipari_1.2.246.562.10.57969864180","Koiramäki","Saunatontut"]
["Lahti_Villähteen päiväkoti_1.2.246.562.10.24547458729","Maakotkat","Metsot","Nuolihaukat"]
["Laihia_Hulmin päiväkoti_1.2.246.562.10.82364742179","Tammenterhot"]
["Laihia_Oravametsän päiväkoti_1.2.246.562.10.70617009512","Liito-oravat","Pörröhännät","Takut","Tikuoravat","Tikut","Tupsukorvat"]
["Laitila_Apilaniityn päiväkoti_1.2.246.562.10.18077216028","Esikot","Esilemmikit","Kissankellot"]
["Laitila_Pähkinäpensaan päiväkoti_1.2.246.562.10.24108906140","Kurret","Nallet"]
["Lapinlahti_Alapitkän päiväkoti_1.2.246.562.10.95404332637"]
["Lapinlahti_Jussinpihan päiväkoti_1.2.246.562.10.99407808502","Ainoa 5-vuotiaiden ryhmä"]
["Lapinlahti_Muksulan päiväkoti_1.2.246.562.10.88407752356"]
["Lapinlahti_Nerkoon päiväkoti_1.2.246.562.10.47118194340","Viikarit"]
["Lapinlahti_Varpaisjärven päiväkoti_1.2.246.562.10.33963703096"]
["Lappeenranta_Joutsenon päiväkoti_1.2.246.562.10.58021188923","Helmiranta","Hiisiharju","Metsätähdet","Velhovuori"]
["Lappeenranta_Karhuvuoren päiväkoti_1.2.246.562.10.94988250877","Ainoa 5-vuotiaiden ryhmä"]
["Lappeenranta_Kourulan päiväkoti_1.2.246.562.10.63384866792","Metkula"]
["Lappeenranta_Lappeen päiväkoti_1.2.246.562.10.46567769446","Sinimetsä","Tähtiniitty"]
["Lappeenranta_Lauritsalan päiväkoti_1.2.246.562.10.12291918634","Yk1","Yk2","Yk3"]
["Lappeenranta_Myllymäen päiväkoti_1.2.246.562.10.22192148132","Hanhiniitty","Ilvesmäki"]
["Lappeenranta_Pontuksen päiväkoti_1.2.246.562.10.31375613036","Havusaari","Käpysaari","Lehtisaari","Sammalniemi"]
["Lappeenranta_Pulpin päiväkoti_1.2.246.562.10.62039532924","Poutapilvi","Sateenkaari","Tarinatalo"]
["Lappeenranta_Sammontalon päiväkoti_1.2.246.562.10.68235300164","Huvikumpu","Käpälämäki","Lavolan esiopetus viskarit","Lehmuskuja","Tarinatalo"]
["Lappeenranta_Voisalmen päiväkoti_1.2.246.562.10.64199284882","Karhuset","Miirut"]
["Lemi_Iitiän päiväkoti_1.2.246.562.10.67462858332","Taikametsä"]
["Lemi_Kuukanniemen päiväkoti (oravanpesä)_1.2.246.562.10.35402480228","Aapisukko","Metsätähti"]
["Lemi_Päiväkoti punahilkka_1.2.246.562.10.67709404767","Hiirenvirna"]
["Leppävirta_Kirkonkylän päiväkoti_1.2.246.562.10.30637471001","Hiekkaranta","Järvikaislat","Satusaari"]
["Leppävirta_Päiväkoti viitosvintiöt_1.2.246.562.10.23124147101","Vekarat","Vintiöt"]
["Leppävirta_Sorsakosken päiväkoti_1.2.246.562.10.61191706516","Ainoa 5-vuotiaiden ryhmä"]
["Leppävirta_Timolan päiväkoti_1.2.246.562.10.36479246039","Eskaviska"]
["Lieksa_Partalanmäen päiväkoti_1.2.246.562.10.46150114703","Lilliputit","Peukaloiset","Pillipiiparit","Tupsukorvat"]
["Lieksa_Päiväkoti orava_1.2.246.562.10.97850095098","Kurret","Pörröhännät","Tammenterhot","Tupsukorvat"]
["Liminka_Aapin päiväkoti_1.2.246.562.10.25768027846","Jannen tupa","Oskarin tupa"]
["Liminka_Jekku_1.2.246.562.10.22217785363","Vikkelät"]
["Liminka_Jupiter_1.2.246.562.10.52952928159","Komeetat"]
["Liminka_Katrin päiväkoti_1.2.246.562.10.30612782372","Hulivilit"]
["Liminka_Koivulan päiväkoti_temp2","Kanervat"]
["Liminka_Liminka_1.2.246.562.10.58527618472","Vikkelät"]
["Liminka_Linnukan päiväkoti/ esiopetus_1.2.246.562.10.72151040580","Hanhirimpi","Joutsenlampi","Peiponpesä"]
["Liminka_Tuomiaron päiväkoti_1.2.246.562.10.60828101984","Neulaset"]
["Liminka_Vanamon päiväkoti_1.2.246.562.10.74386370857","Metsämörrit","Röllit"]
["Liperi_Lautasuon päiväkoti_1.2.246.562.10.14410025952","Helinät"]
["Liperi_Liperin varhaiskasvatus_1.2.246.562.10.67461666280","Sinivuokot","Valkovuokot"]
["Liperi_Paloaukean päiväkoti_1.2.246.562.10.68023286120","Kärrynpyörät 2022"]
["Liperi_Puolivälin päiväkoti_1.2.246.562.10.56359256478","Kissankellot","Kurjenmiekat"]
["Liperi_Taikametsän päiväkoti_1.2.246.562.10.84069511446","Keijukaiset","Mesikämmenet","Tupsukorvat","Töpöhännät"]
["Liperi_Viinijärven päiväkoti_1.2.246.562.10.18596147514","Karviaiset"]
["Lohja_Daghemmet petter_1.2.246.562.10.40146554494"]
["Lohja_Havumetsän päiväkoti_1.2.246.562.10.91677548009","Kanervat","Metsätähdet","Puolukat"]
["Lohja_Laurentius-päiväkoti_1.2.246.562.10.32629416432","Marjat"]
["Lohja_Ojaniitun päiväkoti_1.2.246.562.10.18756375657","Kekkurila","Kissala"]
["Lohja_Pusulan päiväkoti_1.2.246.562.10.47682087839","Kaarnat","Kepit","Kuuset"]
["Lohja_Solbrinkens daghem_1.2.246.562.10.17451219087","Knattar","Tottar"]
["Loimaa_Kauhanojan päiväkoti_1.2.246.562.10.34958268897","Ainoa 5-vuotiaiden ryhmä"]
["Loimaa_Mahlapuiston päiväkoti_1.2.246.562.10.43617455449","Ketut","Oravat"]
["Loimaa_Metsämaan päiväkoti_1.2.246.562.10.26608770975","Esikoulu"]
["Loimaa_Nappulakosken päiväkoti_1.2.246.562.10.24542288675","Vimpulat","Vintiöt"]
["Loimaa_Nappulapellon päiväkoti_1.2.246.562.10.73682662132","Hemulit","Henulit","Hosulit"]
["Loimaa_Niinijoen päiväkoti_1.2.246.562.10.78950569489"]
["Loimaa_Peltoisten vuoropäiväkoti_1.2.246.562.10.51254768370","Pilvenhattarat"]
["Loimaa_Puistometsän päiväkoti_1.2.246.562.10.13839306936","Pilvenhattarat","Tähdenlennot"]
["Loimaa_Päiväkoti melli_1.2.246.562.10.47999059497","Lakut"]
["Loimaa_Touhula alastaro_1.2.246.562.10.11640486970","Kiekkoketut"]
["Loppi_Päiväkoti pellava_1.2.246.562.10.29182093418","Saunapellava","Sinipellavat"]
["Loppi_Päiväkoti satakieli_1.2.246.562.10.75802392623","Kärrynpyörä","Muksumäki pilvenpesä","Muksumäki tuulenpesa"]
["Loppi_Päiväkoti sirkus_1.2.246.562.10.61201457019","Hyrrä","Karuselli","Kärrynpyörä"]
["Luumäki_Jurvalan päiväkoti_1.2.246.562.10.51919444458"]
["Luumäki_Taavetin päiväkoti_1.2.246.562.10.17312862083","Luumupuisto"]
["Maalahti_Bergö daghem_1.2.246.562.10.96037188123","Bergö förskola"]
["Maalahti_Knattebo daghem_1.2.246.562.10.18297307730","Blåklockan","Gullvivan"]
["Maalahti_Smultronstället daghem_1.2.246.562.10.74694373908","Fjärilarna"]
["Maalahti_Solhagen daghem_1.2.246.562.10.45451386150","Blåa helikoptern","Lila kometen","Vihreä satelliitti"]
["Merikarvia_Norkoolin päiväkoti_1.2.246.562.10.38033883562","Nipsut"]
["Miehikkälä_Klamilan päiväkoti_1.2.246.562.10.82645672880","Meduusat"]
["Miehikkälä_Miehikkälän päiväkoti_1.2.246.562.10.80484738879","Leppäkerttu"]
["Miehikkälä_Miehikkälän päiväkoti, pitkäkoski_1.2.246.562.10.75502075486","Pitkäkosken ryhmä"]
["Miehikkälä_Virojoen päiväkoti_1.2.246.562.10.32911897406","Tiirat"]
["Mikkeli_Emolan päiväkoti_1.2.246.562.10.78761425376","Persikat"]
["Mikkeli_Kaarisillan päiväkoti_1.2.246.562.10.16461622033","Täysikuut"]
["Mikkeli_Kalevankankaan päiväkoti_1.2.246.562.10.42264968837","Kerkkäkota","Tuohitupa"]
["Mikkeli_Kattilansillan päiväkoti_1.2.246.562.10.27291568205","Laululähde","Satusaari"]
["Mikkeli_Lähemäen lastentalo_1.2.246.562.10.24548318468","Itikat","Mehiläiset","Perhoset","Pörriäiset","Sudenkorennot"]
["Mikkeli_Naisvuoren päiväkoti_1.2.246.562.10.27003117879","Menninkäiset"]
["Mikkeli_Otavan päiväkoti_1.2.246.562.10.31150452592","Kontiot"]
["Mikkeli_Peitsarin päiväkoti_1.2.246.562.10.82720983533","Musikatit","Rytmiset","Saundit","Soundit"]
["Mikkeli_Päiväkoti kilikello_1.2.246.562.10.53049711921"]
["Mikkeli_Ristiinan päiväkoti_1.2.246.562.10.43479018053","Keltainen tupa","Punainen tupa"]
["Mikkeli_Saksalan päiväkoti_1.2.246.562.10.80267425181","Simpukat"]
["Mikkeli_Sannan päiväkoti_1.2.246.562.10.68348195360","Heinähatut"]
["Mikkeli_Vilttihattu päiväkoti_1.2.246.562.10.48875108796","Tähtihatut"]
["Muhos_Koivulehdon päiväkoti_1.2.246.562.10.96070710718","Kuuset","Männyt","Tuomet"]
["Muhos_Päivärinteen päiväkoti_1.2.246.562.10.76851869255","Esikot","Jukka","Lemmikit","Orvokit"]
["Muhos_Satelliitti_1.2.246.562.10.20175811619"]
["Multia_Kissaniemen päiväkoti_1.2.246.562.10.41470534839","Karhut"]
["Muurame_Pk isolahden päiväkoti_1.2.246.562.10.84335773267","Neulaset"]
["Muurame_Pk leikarin päiväkoti_1.2.246.562.10.25811793170","Vellamot","Vipuset"]
["Muurame_Pk niittyahon esikoulu_1.2.246.562.10.63225974144"]
["Muurame_Pk rajalan päiväkoti_1.2.246.562.10.99579562366","Hepokatit","Karpalot","Vadelmat"]
["Mynämäki_Pikkulaurin päiväkoti_1.2.246.562.10.42461362024","Puukiipijät"]
["Naantali_Karvetin päiväkoti_1.2.246.562.10.66208423153","Leppikset","Omput"]
["Naantali_Merimaskun päiväkoti_1.2.246.562.10.31164330644","Matruusit"]
["Naantali_Nuhjalan päiväkoti_1.2.246.562.10.58621100575","Kipparit","Matruusit"]
["Naantali_Taimon päiväkoti_1.2.246.562.10.65135276502","Seikkis"]
["Nivala_Knuutinpuhdon päiväkoti_1.2.246.562.10.64789790694","Veskarit"]
["Nivala_Raitalan päiväkoti_1.2.246.562.10.16883761021","Omenaiset"]
["Nivala_Vilkunan päiväkoti_1.2.246.562.10.10832740228","Päivänkakkarat"]
["Nokia_Alhoniityn päiväkoti_1.2.246.562.10.11955823270","Kukkaniitty","Rantaniitty"]
["Nokia_Harjuniityn päiväkoti_1.2.246.562.10.61705759696","Karhunpesä","Näädänpesä"]
["Nokia_Kartanon päiväkoti_1.2.246.562.10.72743907676","Väentupa"]
["Nokia_Kyyninkadun päiväkoti_1.2.246.562.10.67559904643","Kissankulma","Satulaakso"]
["Nokia_Lauttalan päiväkoti/haavistontien yksikkö_1.2.246.562.10.85769178790","Kulta-aarteet"]
["Nokia_Linnavuoren päiväkoti_1.2.246.562.10.29374894862","Vuorenvalloittajat"]
["Nokia_Lähdekorven päiväkoti_1.2.246.562.10.35938133002","Kaarnakäpälät","Naavanutut"]
["Nokia_Menkalan päiväkoti_1.2.246.562.10.50753799027","Metsätähdet"]
["Nokia_Myllyhaan päiväkoti_1.2.246.562.10.50135291016","Kuusikallio"]
["Nokia_Orvokin päiväkoti_1.2.246.562.10.35382538177","Pähkinämäki"]
["Nokia_Peppi & bobby_1.2.246.562.10.10389999706","Busytown","Greendale","Huvikumpu"]
["Nokia_Puropuiston päiväkoti_1.2.246.562.10.30062129157","Safiirit"]
["Nokia_Siuron päiväkoti_1.2.246.562.10.93054138636","Hepokatit","Palosirkat"]
["Nokia_Tottijärven päiväkoti_1.2.246.562.10.53767693061","Heinähatut"]
["Nokia_Tyttölän päiväkoti_1.2.246.562.10.86998496755","Kärrynpyörä"]
["Nokia_Viholan päiväkoti_1.2.246.562.10.65175442832","Männynkävyt","Pajunkissat"]
["Nurmijärvi_Haikalan päiväkoti_1.2.246.562.10.99892782394","Delfiinit"]
["Nurmijärvi_Mäntysalon päiväkoti_1.2.246.562.10.37233981937","Haltijat","Neulaset"]
["Nurmijärvi_Nukarin päiväkoti_1.2.246.562.10.77790041956","Kuohut","Tyrskyt"]
["Nurmijärvi_Ylitilantien päiväkoti_1.2.246.562.10.38796643336","Aitta","Vintti"]
["Orimattila_Kuivannon päiväkoti hepokatti_1.2.246.562.10.60766567410","Ainoa 5-vuotiaiden ryhmä"]
["Orimattila_Pennalan päiväkoti_1.2.246.562.10.80373542887"]
["Orimattila_Vuorenmäen päiväkoti_1.2.246.562.10.91074977686","Vuorenpeikot"]
["Oripää_Päiväkoti kultasiipi_1.2.246.562.10.95860749928","Nallenkolo"]
["Oripää_Päiväkoti nallenkolo_1.2.246.562.10.13682734291"]
["Oulainen_Laukkalinnan päiväkoti_1.2.246.562.10.82281153112","Pikkulinnan","Verkarat","Viikarit"]
["Oulainen_Metsolan päiväkoti_1.2.246.562.10.24403104201","Oravat"]
["Oulainen_Päiväkoti emilia_1.2.246.562.10.42412057426"]
["Oulainen_Valorannan päiväkoti_temp1","Päivänsäteet"]
["Oulu_Ahvenojan päiväkoti_1.2.246.562.10.69165864195","Taimenet"]
["Oulu_Ainolan päiväkoti ymp_1.2.246.562.10.98634836708","Punatulkut","Untamot"]
["Oulu_Allinpuiston päiväkoti_1.2.246.562.10.26316604771"]
["Oulu_Haapalehdon päiväkoti_1.2.246.562.10.78711694352","Juoksu-jussit","Kuperkeikat","Voltti-veikot 1","Voltti-veikot 2"]
["Oulu_Heikkilänkankaan päiväkoti_1.2.246.562.10.86788909967","Ponit"]
["Oulu_Herukan päiväkoti_1.2.246.562.10.93204018621","Ainoa 5-vuotiaiden ryhmä"]
["Oulu_Honkimaan päiväkoti_1.2.246.562.10.45702454328","Kaarnaset","Käpyset","Pihkaset"]
["Oulu_Huonesuon päiväkoti_1.2.246.562.10.99920337237","Lotat"]
["Oulu_Hönttämäen päiväkoti_1.2.246.562.10.98636883815","Melukylä"]
["Oulu_Jatulin tarhan päiväkoti_1.2.246.562.10.26251405184","Merenpeikot","Metsänpeikot"]
["Oulu_Kaakonpojan päiväkoti_1.2.246.562.10.72831507909","Isokaakkurit","Siipiveikot"]
["Oulu_Kaijonharjun päiväkoti_1.2.246.562.10.27899304821","Keskikamari"]
["Oulu_Kalliolan päiväkoti_1.2.246.562.10.72482607396","Koiramäki"]
["Oulu_Kangaskontion päiväkoti_1.2.246.562.10.49702012771","Mesikämmenet"]
["Oulu_Kangaspuiston päiväkoti_1.2.246.562.10.97761875844","Tenavat"]
["Oulu_Kastellin monitoimitalon päiväkoti_1.2.246.562.10.57717196786","Satusalonki","Tarinatalli"]
["Oulu_Kellon päiväkoti_1.2.246.562.10.80889831493","Hiutaleet"]
["Oulu_Kiiminkijoen päiväkoti_1.2.246.562.10.46169772640","Kalastajat","Melojat","Purjehtijat"]
["Oulu_Kisakentän päiväkoti_1.2.246.562.10.45003640237","Vikkelät"]
["Oulu_Kiviniemen päiväkoti_1.2.246.562.10.81091701854","Kipparit","Simpukat"]
["Oulu_Knuutilankankaan päiväkoti_1.2.246.562.10.66184578004","Virtaset"]
["Oulu_Korvensuoran päiväkoti_1.2.246.562.10.60272193735","Kissankulma"]
["Oulu_Koskelan päiväkoti_1.2.246.562.10.72963623847","Poijut"]
["Oulu_Kuivasjärven päiväkoti_1.2.246.562.10.88355632071","Kotikolo","Mutkajoki","Pajupoukama"]
["Oulu_Kuovin päiväkoti_1.2.246.562.10.34780301072","Heinähatut","Kurret","Seikkailijat"]
["Oulu_Kuukkelin päiväkoti_1.2.246.562.10.94355922355","Alvarit","Oskarit","Reetat","Reinot","Venlat"]
["Oulu_Laivakankaan päiväkoti_1.2.246.562.10.13064987517","Seilorit","Seilorit\r\r\n"]
["Oulu_Linnunrata_1.2.246.562.10.52166590068","Kuut"]
["Oulu_Lämsänjärven päiväkoti_1.2.246.562.10.74252768853","Jekkulit","Vekkulit"]
["Oulu_Länsituulen päiväkoti_1.2.246.562.10.88576639533","Intiaanit","Keijut","Ketunpesä punaiset","Sudenpesä keltaiset","Sudenpesä punaiset"]
["Oulu_Maikkulan päiväkoti_1.2.246.562.10.85843987075","Niittyvilla"]
["Oulu_Martinniemen päiväkoti_1.2.246.562.10.49271392836","Runoranta","Satuniitty"]
["Oulu_Meri-toppilan päiväkoti_1.2.246.562.10.37867955363","Aallot"]
["Oulu_Merikosken päiväkoti_1.2.246.562.10.82052540497","Kaislat"]
["Oulu_Metsokankaan päiväkoti_1.2.246.562.10.55539301428","Tilhet"]
["Oulu_Muurahaisen päiväkoti_1.2.246.562.10.51740868297","Muurahaiset"]
["Oulu_Myllyojan päiväkoti_1.2.246.562.10.13586211396","Muksut"]
["Oulu_Mäntylä-snellman päiväkoti_1.2.246.562.10.66999367684","Kaarnaset","Snellmanit"]
["Oulu_Mäntyrinteen päiväkoti_1.2.246.562.10.15506284163","Kontiola","Metsola"]
["Oulu_Oulunlahden päiväkoti_1.2.246.562.10.23033462195","Impivaara","Paja","Tupa"]
["Oulu_Palokan päiväkoti_1.2.246.562.10.79289614897","Puosut"]
["Oulu_Pikku-ainon päiväkoti_1.2.246.562.10.81243406592","Apilankukat","Lilies","Sinikellot"]
["Oulu_Pikku-iikan päiväkoti_1.2.246.562.10.81600949408","Männikkö"]
["Oulu_Pitkäkankaan päiväkoti_1.2.246.562.10.97158977443","Veijarit","Vekkulit"]
["Oulu_Puolivälinkankaan päiväkoti_1.2.246.562.10.43470242082","Näppärit","Vekkulit"]
["Oulu_Riekonmarjan toimintakeskus_1.2.246.562.10.63694437979","Riekot"]
["Oulu_Saloilan päiväkoti_1.2.246.562.10.30086275200","Karpalot","Sinikellot"]
["Oulu_Sampolan päiväkoti_1.2.246.562.10.21949915561","Joukahaiset","Tellervot","Untamoiset"]
["Oulu_Sarasuon päiväkoti_1.2.246.562.10.41916903036","Kaakkurit","Sirrit","Viklot"]
["Oulu_Saturnus_1.2.246.562.10.35604022497","Tähdet","Tähdet\r\r\n"]
["Oulu_Savotta-aukion päiväkoti_1.2.246.562.10.55432029225","Koivuset","Mäntyset"]
["Oulu_Simpsin päiväkoti_1.2.246.562.10.97891201838","Meritähdet"]
["Oulu_Syynimaan päiväkoti_1.2.246.562.10.45427592030","Linnunrata"]
["Oulu_Talvikankaan päiväkoti_1.2.246.562.10.24760910547","Huurre","Viima","Vinkka"]
["Oulu_Tuokkosen päiväkoti_1.2.246.562.10.54976788593","Puolukat","Ratamot"]
["Oulu_Tuulikellon päiväkoti_1.2.246.562.10.99622952333","Merituuli","Tiuku","Tuuliviirit"]
["Oulu_Vekara-ahon päiväkoti_1.2.246.562.10.22320053618","Miukumaakarit","Tassutaaperot","Tassutaaperot\r\r\n","Viiruveijarit"]
["Oulu_Vesalan päiväkoti_1.2.246.562.10.26731322736","Västäräkit"]
["Oulu_Välikylän päiväkoti_1.2.246.562.10.87788231550"]
["Oulu_Värtön päiväkoti_1.2.246.562.10.27758869443","Kiitäjät","Kärpät","Lumikot","Siilit"]
["Oulu_Ylikiimingin päiväkoti jao_1.2.246.562.10.95152289104","Sadepisarat","Västäräkit"]
["Padasjoki_Päiväkoti majava_1.2.246.562.10.97349733481","Menninkäiset","Viskarit"]
["Paimio_Hanhijoen päiväkoti_1.2.246.562.10.24857960900","Villihanhet"]
["Paimio_Jokelan päiväkoti_1.2.246.562.10.82198014886","Ankkurit","Reimarit"]
["Paimio_Tapiolan päiväkoti_1.2.246.562.10.58064828468","Kurret","Otsot"]
["Paltamo_Päiväkoti mesikämmen_1.2.246.562.10.34317570116","Ainoa 5-vuotiaiden ryhmä"]
["Paltamo_Päiväkoti männynkäpy_1.2.246.562.10.57111657649","Käpylä"]
["Parainen_Björkhagens daghem koivuhaan päiväkoti_1.2.246.562.10.92860252698","Bullerbyn","Huvikumpu","Kesäkumpu","Melukylä"]
["Parainen_Korpo daghem_1.2.246.562.10.57449226463","Ruffen"]
["Parainen_Nilsbyn esiopetus_1.2.246.562.10.24665793824","Ninjat"]
["Parainen_Pjukala daghem_1.2.246.562.10.48563937886","Ekorrar","Mikkonen"]
["Parikkala_Päiväkoti kuperkeikka_1.2.246.562.10.49511465327"]
["Parikkala_Päiväkoti laulujoutsen_1.2.246.562.10.80700963186","Ainoa 5-vuotiaiden ryhmä"]
["Parkano_Kallio_1.2.246.562.10.87493127085","Vaahteramäki"]
["Parkano_Kuttikallio_1.2.246.562.10.28224825985","Koiramäki","Melukulä","Melukyla","Melukylä"]
["Parkano_Kuttikallio koulukuja 14_1.2.246.562.10.54857466715"]
["Petäjävesi_Kintauden päiväkoti_1.2.246.562.10.26620061346","Kaislat","Saraheinät"]
["Petäjävesi_Petäjäkallion päiväkoti_1.2.246.562.10.39517754725","Karhunvatukat","Lintukoto"]
["Pieksämäki_Hiekanpään päiväkoti_1.2.246.562.10.63687531432","Metsola","Sirkut","Virkut"]
["Pieksämäki_Kontiopuiston päiväkoti_1.2.246.562.10.41283347395","Lammenkukkaryhmä jäppilä"]
["Pieksämäki_Maaselän päiväkoti_1.2.246.562.10.50453392313","Vekarat"]
["Pieksämäki_Nenonpellon päiväkoti_1.2.246.562.10.51623493718","Neppikset"]
["Pieksämäki_Päiväkoti sylvin-syli_1.2.246.562.10.18840410353","Ainoa 5-vuotiaiden ryhmä"]
["Pieksämäki_Päiväkoti villaviikari_1.2.246.562.10.11306289866","5-vuotiaat"]
["Pieksämäki_Tahiniemen päiväkoti_1.2.246.562.10.55992576573","Kaislat","Kuntouttava pienryhmä","Lumpeet","Rentukat"]
["Polvijärvi_Päiväkoti peukaloinen_1.2.246.562.10.90407413617","Maahiset","Menninkäiset"]
["Polvijärvi_Sotkuman päiväkoti_1.2.246.562.10.52020409331","Metsätähdet"]
["Pomarkku_Pomarkun päiväkoti_1.2.246.562.10.29298477158","Kiurut","Pääskyset"]
["Pornainen_Päiväkoti linnunlaulu_1.2.246.562.10.35106165406","Keltasirkut","Kivitaskut","Sinitiaiset"]
["Pornainen_Päiväkoti tammenterho_1.2.246.562.10.79874750965","Ainoa 5-vuotiaiden ryhmä"]
["Pornainen_Wanhan puukoulun päiväkoti ent. Aurinkolinna_1.2.246.562.10.13084994436","Keltasirkut","Tenavat"]
["Posio_Posion päiväkoti_1.2.246.562.10.28109577073","Iirot","Viskarit"]
["Pälkäne_Aitoon päiväkoti_1.2.246.562.10.91254688871","Ainoa 5-vuotiaiden ryhmä"]
["Pälkäne_Harjun päiväkoti_1.2.246.562.10.85252038923"]
["Pälkäne_Hermannin päiväkoti_1.2.246.562.10.98274521230","Tähkät","Viljat"]
["Pälkäne_Luopioinen esiopetus_1.2.246.562.10.67089778038","Ainoa 5-vuotiaiden ryhmä"]
["Pälkäne_Viirikukon päiväkoti_1.2.246.562.10.57824790117","Kilpukat"]
["Pöytyä_Kyrön päiväkoti_1.2.246.562.10.25718542118","Heinähatut","Mesimarjat","Pikkutassut","Suopursut"]
["Pöytyä_Metsälauha_1.2.246.562.10.67039862924","Maijala","Viuhdit"]
["Pöytyä_Päiväkoti pikkukirsikka_1.2.246.562.10.24471793950","Viikarit"]
["Pöytyä_Yläneen päiväkoti_1.2.246.562.10.56223696255"]
["Raasepori_Bromarv daghem_1.2.246.562.10.57642887921","Björnbo"]
["Raasepori_Båssaboda daghem_1.2.246.562.10.98074748587","Kantarellen"]
["Raasepori_Fiskarin päiväkoti_1.2.246.562.10.47720447128","Naskalit"]
["Raasepori_Labyrintens daghem labyrintin päiväkoti_1.2.246.562.10.50222036688","Kehäkukat","Rosen"]
["Raasepori_Langansböle daghem_1.2.246.562.10.23629765456"]
["Raasepori_Mäntykodon päiväkoti_1.2.246.562.10.17410247484","Ainoa 5-vuotiaiden ryhmä"]
["Raasepori_Pinjaisten päiväkoti billnäs daghem_1.2.246.562.10.41856093715","Bofinkarna","Harakat"]
["Raasepori_Rasebo daghem_1.2.246.562.10.48626727399","Bikupan","Muurahaiset","Stimmet"]
["Raasepori_Skogsgläntans daghem_1.2.246.562.10.90714142297","Björnidet"]
["Raasepori_Solbacka daghem_1.2.246.562.10.57595864547","Smultron","Vadelmat"]
["Raasepori_Solglimtens daghem_1.2.246.562.10.72636062175","Katthult","Saltkråkan"]
["Raasepori_Svartå daghem mustion päiväkoti_1.2.246.562.10.39803922689","Nallet","Trollungarna"]
["Raasepori_Tunabo daghem_1.2.246.562.10.31136074551"]
["Raasepori_Österbo daghem_1.2.246.562.10.75743507362"]
["Raisio_Hakinmäen päiväkoti_1.2.246.562.10.58683092991","Karhunluola","Tähdet"]
["Raisio_Kaanaan päiväkoti_1.2.246.562.10.37596018855","Kuusela","Pajula"]
["Raisio_Leijapuiston päiväkoti_1.2.246.562.10.13854759555","Leinikit","Vanamot"]
["Raisio_Metsäaron päiväkoti_1.2.246.562.10.23641226719","Noitapillit"]
["Raisio_Pasalan päiväkoti_1.2.246.562.10.52062193033","Kannonkolo","Lintukoto"]
["Raisio_Petäsmäen päiväkoti_1.2.246.562.10.22078787466","Kesakot"]
["Raisio_Varppeen lastentarha_1.2.246.562.10.31433440539","Linnunpesä","Oravanpesä"]
["Ranua_Ranuan päiväkoti_1.2.246.562.10.30901750791","Kuhan koulu","Rantakoulu"]
["Ranua_Ranuan päiväkoti ryhmä 2_1533","Kuhan koulu","Rantakoulu"]
["Rautalampi_Pentinpellon päiväkoti_1.2.246.562.10.11616181241"]
["Rautalampi_Silmu_1.2.246.562.10.61861299990"]
["Riihimäki_Herajoen koulu_1.2.246.562.10.71823333506","Mansikat"]
["Riihimäki_Jukolan päiväkoti_1.2.246.562.10.19703872184","Kukkassaaristo","Mansikkatöyräs","Sammalkuusisto"]
["Riihimäki_Junailijankadun päiväkoti_1.2.246.562.10.22888426271","Viikarit"]
["Riihimäki_Uramon päiväkoti_1.2.246.562.10.43461220741","Hippiäiset","Lepinkäiset","Varpuset"]
["Rovaniemi_Hirvaan päiväkoti_1.2.246.562.10.61982949499","Viirupöllöt"]
["Rovaniemi_Kivitaipaleen päiväkoti_1.2.246.562.10.66364297904","Ainoa 5-vuotiaiden ryhmä"]
["Rovaniemi_Meltauksen päiväkoti_1.2.246.562.10.95779697820","Lintukoto"]
["Rovaniemi_Mustikkaharjun päiväkoti_1.2.246.562.10.41576907087","Helmet","Hiput","Purot","Solinat"]
["Rovaniemi_Muurolan päiväkoti_1.2.246.562.10.29697221272","Karpalot","Mustikat"]
["Rovaniemi_Naavametsän päiväkoti_1.2.246.562.10.16130150101","Havuset","Tuohiset"]
["Rovaniemi_Napapiirin päiväkoti_1.2.246.562.10.47516584464","Hallat","Kellokkaat","Tiukuset","Tonttuset","Tuuloset"]
["Rovaniemi_Päiväkoti väinämöinen_1.2.246.562.10.53191785194","Runoratsut"]
["Rovaniemi_Rautiosaaren päiväkoti_1.2.246.562.10.94568764719","Eskarit"]
["Rovaniemi_Saarenputaan päiväkoti_1.2.246.562.10.99581581586","Kuunsillat","Pyrstötähdet","Päivänsäteet","Taikatuulet","Tähdenlennot"]
["Rovaniemi_Ylikylän päiväkoti_1.2.246.562.10.54619950832","Kuuraset","Sumuset","Tihkuset"]
["Rovaniemi_Yläkemijoen päiväkoti_1.2.246.562.10.89100440620"]
["Ruokolahti_Ruokolahden päiväkoti_1.2.246.562.10.23590589117","Luhtavillat","Niittyvillat"]
["Rusko_Hiidenvainion päiväkoti_1.2.246.562.10.75250003839","Repolaiset"]
["Rusko_Jokikummun päiväkoti_1.2.246.562.10.65909310602","Heinähatut"]
["Rusko_Karhukallion päiväkoti_1.2.246.562.10.76634149173","Kontiot"]
["Rusko_Karhukallion päiväkoti vanhatie_1.2.246.562.10.43391115656","Kontiot","Kontiot\r\r\n"]
["Rusko_Laukolan päiväkoti_1.2.246.562.10.34916987497","Metsätähdet"]
["Rusko_Laukolan päiväkoti vahdontie_1.2.246.562.10.69109485347"]
["Rusko_Norlandia apila_1.2.246.562.10.29088478648","Hillat"]
["Rusko_Satumetsän päiväkoti_1.2.246.562.10.23110827237","Korallit","Sinisimpukat"]
["Saarijärvi_Lanneveden päiväkoti_1.2.246.562.10.50523916430"]
["Saarijärvi_Pikku-mäntylä_1.2.246.562.10.45294665281","Tiitiäiset"]
["Saarijärvi_Pylkönmäen päiväkoti_1.2.246.562.10.13774843778","Esiopetusryhmä"]
["Saarijärvi_Sivula_1.2.246.562.10.43265785071","Hauskala","Raisula","Taitola"]
["Saarijärvi_Solmu_1.2.246.562.10.30757753352","Tähkät"]
["Salla_Kinttalanharjun varhaiskasvatuskeskus_1.2.246.562.10.50460032191","Hirvet","Hirvet\r\r\n"]
["Salo_Hähkänän päiväkoti_1.2.246.562.10.69663141443","Hipsuhatut"]
["Salo_Isohärjänmäen päiväkoti_1.2.246.562.10.37196436416","Pajunkissat","Tammenterhot"]
["Salo_Kuusjoen päiväkoti_1.2.246.562.10.43993920958","Jänikset"]
["Salo_Lampolan päiväkoti_1.2.246.562.10.18504571342","Apilat","Kanervat","Vuokot"]
["Salo_Metsärinteen päiväkoti_1.2.246.562.10.97902616008","Kultapiiskut"]
["Salo_Muurlan päiväkoti_1.2.246.562.10.88117041561","Pajupillit","Pikkolot"]
["Salo_Märynummen päiväkoti_1.2.246.562.10.40229715582","Kaverit"]
["Salo_Ollikkalan päiväkoti_1.2.246.562.10.88796887227","Pääskyt","Solstrålarna","Tiaiset","Tilhet"]
["Salo_Palometsän päiväkoti_1.2.246.562.10.81744874413","Karviaiset","Mansikat","Mesimarjat"]
["Salo_Päiväkoti sinilintu_1.2.246.562.10.98557395088","Vilinät"]
["Salo_Suomusjärven päiväkoti_1.2.246.562.10.97295079137","Niittyvillat"]
["Salo_Torikadun päiväkoti_1.2.246.562.10.52969887562","Vekarat","Viirut"]
["Salo_Tupuri-anjalan päiväkoti_1.2.246.562.10.46782789708","Luumut","Persikat"]
["Sastamala_Häijään koulu esiopetus-päivähoito_1.2.246.562.10.87335950850","Lemmikit"]
["Sastamala_Kiikan päiväkoti_1.2.246.562.10.49154117391"]
["Sastamala_Koiramäen päiväkoti_1.2.246.562.10.67886700243","Kaislaranta","Pääskysaari"]
["Sastamala_Norlandia Kieppi_temp3"]
["Sastamala_Norlandia konsti_1.2.246.562.10.82410057291","Punaiset","Siniset"]
["Sastamala_Ojansuun päiväkoti_1.2.246.562.10.59767080613","Aakkosvirta","Riimilampi"]
["Sastamala_Pilvilinnan päiväkoti_1.2.246.562.10.30104040347"]
["Sastamala_Stormin päiväkoti_1.2.246.562.10.28433566255","Ainoa 5-vuotiaiden ryhmä"]
["Sastamala_Tilapäinen suodenniemen päiväkoti_1.2.246.562.10.41546085345","Viskarit"]
["Sastamala_Tipulan päiväkoti_1.2.246.562.10.78854280068","Ainoa 5-vuotiaiden ryhmä"]
["Sastamala_Touhula sastamala_1.2.246.562.10.20350406771"]
["Sastamala_Toukolan koulu esiopetus-päivähoito_1.2.246.562.10.89572419433","Ainoa 5-vuotiaiden ryhmä"]
["Sastamala_Ulpun päiväkoti_1.2.246.562.10.84758840387"]
["Sastamala_Uotsolan päiväkoti_1.2.246.562.10.65797821801","Vaapukkavarpaat"]
["Sauvo_Päiväkoti hakkiskoto_1.2.246.562.10.74444735349","Sirrit"]
["Savitaipale_Kivikoulu_1.2.246.562.10.82377038110","Viskarit"]
["Savonlinna_Anttolan päiväkoti_1.2.246.562.10.95189394323","Hattukallio","Veijarit","Vinskit"]
["Savonlinna_Asemantien päiväkoti_1.2.246.562.10.64664311103","Huru","Jarruvaunu","Makuuvaunu","Resiina","Vekkulit","Vintiöt"]
["Savonlinna_Kellarpellon päiväkoti_1.2.246.562.10.58714153457","Vekkulit","Vesselit","Viikarit","Vintiöt"]
["Savonlinna_Kerimäen päiväkoti_1.2.246.562.10.83367669393","Leinikit","Vanamot","Vintiöt"]
["Savonlinna_Nojanmaan päiväkoti_1.2.246.562.10.25532576896","Hattivatti","Tahmatassut"]
["Savonlinna_Pihlajaniemen päiväkoti_1.2.246.562.10.92717278367","Ilmattaret","Vetehiset"]
["Savonlinna_Punkaharjun päiväkoti_1.2.246.562.10.73536726737","Kersat","Tiitiäiset","Viikarit","Wilperit"]
["Savonlinna_Savonrannan päiväkoti_1.2.246.562.10.47528959050"]
["Savonlinna_Touhula mertala_1.2.246.562.10.34294391312","Kulkurit","Temmeltäjät","Temmeltäjät\r\r\n","Vipeltäjät","Vipeltäjät\r\r\n"]
["Savonlinna_Touhula nätki_1.2.246.562.10.74014379197","Vilpertit","Vintiöt"]
["Siikalatva_Päiväkoti esikko_1.2.246.562.10.96532207659"]
["Siikalatva_Päiväkoti hiirenkorva_1.2.246.562.10.10325444718","Pikkueskari"]
["Siikalatva_Suopeikon päiväkoti_1.2.246.562.10.53021278840","Haltijat"]
["Siikalatva_Vaarintalon päiväkoti_1.2.246.562.10.20351219348","Esikoulu"]
["Simo_Maksniemen päiväkoti_1.2.246.562.10.98276777624","Pihlajapuisto"]
["Simo_Simon päiväkoti_1.2.246.562.10.93838559453","Revontulet"]
["Sipoo_Daghemmet arken_1.2.246.562.10.27149336128"]
["Sipoo_Metsärinteen päiväkoti skogsbackens daghem_1.2.246.562.10.13827954630"]
["Sipoo_Metsätien päiväkoti_1.2.246.562.10.60936641806","Kuusikko","Männikkö"]
["Sipoo_Nikkilän päiväkoti nickby daghem_1.2.246.562.10.71072667653","Blåklockan","Pääskylä"]
["Sipoo_Norlandia kaisla_1.2.246.562.10.18968346892","Kettula"]
["Sipoo_Norlandia talma_1.2.246.562.10.64342796881","Sudet"]
["Sipoo_Päiväkoti pikkusydän daghemmet lillhjärtat_1.2.246.562.10.99274000662","Karhut","Nallet","Pöllöt","Vargarna"]
["Sipoo_Söderkulla_1.2.246.562.10.87533703218"]
["Sipoo_Södra paipis daghem och förskola_1.2.246.562.10.37963215506"]
["Siuntio_Bullerbybarnen_1.2.246.562.10.16696148119"]
["Siuntio_Junibackens lekskola_1.2.246.562.10.53272803171"]
["Siuntio_Suomenkielinen esiopetus_1.2.246.562.10.38342154705","C","D","E"]
["Siuntio_Svenska förskolan_1.2.246.562.10.69941143724","Femåringar"]
["Sodankylä_Paulaharjun päiväkoti_1.2.246.562.10.52775911002"]
["Sodankylä_Poikkijoen päiväkoti_1.2.246.562.10.98399070741"]
["Sodankylä_Touhula sodankylä_1.2.246.562.10.97897689499"]
["Sotkamo_Kontinjoki_1.2.246.562.10.34549717659","Käpyset"]
["Sotkamo_Käpymetsä vuoropäiväkoti_1.2.246.562.10.18396524763","Otsot"]
["Sotkamo_Leivola_1.2.246.562.10.63154006215","Pörhikit","Veppelit"]
["Sotkamo_Satuvakka_1.2.246.562.10.50560282480","Maahiaiset","Mörriäiset","Tiitiäiset"]
["Sotkamo_Tiilikangas_1.2.246.562.10.85618319876","Aurinkoeskarit","Kultapiiskut","Suopursut"]
["Suonenjoki_Iisveden päiväkoti_1.2.246.562.10.85539484684","Hauet"]
["Suonenjoki_Kopolan päiväkoti_1.2.246.562.10.53696886760","Tiitiäiset"]
["Suonenjoki_Norlandia mustikka_1.2.246.562.10.50883996584","Naavatassut","Sammalvarpaat"]
["Suonenjoki_Valkeisenmäen päiväkoti_1.2.246.562.10.59941992766","Ainoa 5-vuotiaiden ryhmä"]
["Säkylä_Huovinrinteen päiväkoti_1.2.246.562.10.76302803051","Eskariviskari"]
["Säkylä_Keskustan päiväkoti pastorintie_1.2.246.562.10.69028417306","Mansikat"]
["Säkylä_Keskustan päiväkoti tuulimyllyntie_1.2.246.562.10.98131524492","Mansikat"]
["Säkylä_Onnimannin päiväkoti_1.2.246.562.10.17468499797","Nallet"]
["Taivassalo_Päiväkoti pikkupoiju_1.2.246.562.10.17332003262","Vatukat"]
["Tammela_Päiväkoti porras_1.2.246.562.10.81264055724","Tammela"]
["Tammela_Päiväkoti taikatassu_1.2.246.562.10.74782644020","Ilvekset","Siilit","Susi"]
["Tammela_Päiväkoti tammitarha_1.2.246.562.10.46533286830","Taitajat"]
["Tohmajärvi_Päiväkoti käenpesä_1.2.246.562.10.17746737448","Västäräkit"]
["Tohmajärvi_Tikkalan päiväkoti_1.2.246.562.10.99414173072","Peurankellot"]
["Tornio_Arpelan esiopetus_1.2.246.562.10.78500032400","Ainoa 5-vuotiaiden ryhmä"]
["Tornio_Hannulan koulun eskari_1.2.246.562.10.78789236300","Mänty","Pihlajaryhmä"]
["Tornio_Kaakamon esiopetus_1.2.246.562.10.76558709671","Ainoa 5-vuotiaiden ryhmä"]
["Tornio_Karungin esiopetus_1.2.246.562.10.67033412999","Eskot"]
["Tornio_Kokkokankaan eskari_1.2.246.562.10.29346253221"]
["Tornio_Pirkkiön esiopetus_1.2.246.562.10.91618080047","Mintut"]
["Tornio_Seminaarin eskari_1.2.246.562.10.89194198332","Oravat","Pöllöt"]
["Turku_Arkeologinkadun päiväkoti_1.2.246.562.10.66301242245","Keltasirkut","Punatulkut","Vaapukat"]
["Turku_Asemanseudun päiväkoti_1.2.246.562.10.86471467729","Aurinkoiset","Kuunsäteet","Reimarit"]
["Turku_Cygnaeus daghem och förskola_1.2.246.562.10.78114641877","Hemuler"]
["Turku_Haarla-pikisaaren päiväkoti_1.2.246.562.10.53356168509","Kuut","Meteorit","Tähdet","Tähdet\r\r\n"]
["Turku_Halisten päiväkoti_1.2.246.562.10.53810250455","Vesselit","Viikarit","Vintiöt","Vohmatit"]
["Turku_Hannunniitun päiväkoti_1.2.246.562.10.62665081758","Kurret","Nallet","Pyrstötähdet","Sateenkaaret"]
["Turku_Haritun päiväkoti_1.2.246.562.10.46893703481","Leijonanhampaat","Silkkitassut","Tiikerit"]
["Turku_Heinikonkadun päiväkoti_1.2.246.562.10.50288674208","Hattivatit","Nuuskamuikkuset"]
["Turku_Hepokullan päiväkoti_1.2.246.562.10.57988177309","Nopsanapit","Salamasaappaat","Tuulihatut","Vauhtiviitat"]
["Turku_Hintsankujan päiväkoti_1.2.246.562.10.37099243984","Vekkulit"]
["Turku_Härkämäen päiväkoti_1.2.246.562.10.92859919646"]
["Turku_Ilpoisten päiväkoti_1.2.246.562.10.59221237957","Nopsajalat","Pomppunassut","Tempputassut"]
["Turku_Ispoinen-petreliuksen päiväkoti_1.2.246.562.10.39942194802","Neilikat","Vekkulit","Viikarit"]
["Turku_Kaerlan päiväkoti_1.2.246.562.10.58587937432","Revontulet"]
["Turku_Karhunaukion päiväkoti_1.2.246.562.10.22280472436","Mesikämmenet","Siniset"]
["Turku_Kaskenmäen päiväkoti_1.2.246.562.10.92065608702","Kissantassut","Sinikellot"]
["Turku_Kastun päiväkoti_1.2.246.562.10.83503924132","Kultakirsikat","Taikaterhot"]
["Turku_Kerttulin päiväkoti_1.2.246.562.10.56553765811","Myyrät","Oravat","Rävarna","Siilit"]
["Turku_Koivulan päiväkoti_1.2.246.562.10.15730519848","Rumpalit","Soittoniekat"]
["Turku_Koukkarinkadun päiväkoti_1.2.246.562.10.69753937965","Karpalot","Mustikat","Suopursut"]
["Turku_Koulukadun päiväkoti_1.2.246.562.10.95646259804","Aurinkoiset","Kurret"]
["Turku_Kukolan päiväkoti_1.2.246.562.10.12033649059","Kastehelmet","Säteet"]
["Turku_Lastentarha l`hexagonen kannatusyhdistys ry_1.2.246.562.10.25850160273","Siniset"]
["Turku_Lausteen päiväkoti_1.2.246.562.10.90091346925","Kuunsirut","Päivänsäteet","Revontulet","Tähtöset"]
["Turku_Moikoisten päiväkoti_1.2.246.562.10.95630143139","Kuusenkerkät","Päivänsäteet"]
["Turku_Moision päiväkoti_1.2.246.562.10.28966273337","Kiitäjät","Nopsasiivet"]
["Turku_Mukulax hirvensalo_1.2.246.562.10.52146242871","Päiväperhoset"]
["Turku_Mukulax kähäri_1.2.246.562.10.77400362289","Peikot"]
["Turku_Munterinkadun päiväkoti_1.2.246.562.10.38907362453","Ilvekset","Karhut","Ketut","Mesikämmenet","Oravat","Peukaloiset"]
["Turku_Mäntymäen päiväkoti_1.2.246.562.10.14833406474","Kottaraiset","Mansikat","Matruusit"]
["Turku_Norlandia ilo_1.2.246.562.10.28151042513","Ainoa 5-vuotiaiden ryhmä"]
["Turku_Nummenpuistokadun päiväkoti_1.2.246.562.10.62665488458","Kuunsillat","Pilvenhattarat","Tähdenlennot"]
["Turku_Nättinummen päiväkoti_1.2.246.562.10.39704769593","Tattaraiset","Tähtitukat"]
["Turku_Orminkujan päiväkoti_1.2.246.562.10.49320835785","Hillerit","Lumikot","Majavat","Naalit","Naalit\r\r\n"]
["Turku_Paattisten päiväkoti_1.2.246.562.10.32884761704","Hillat","Karpalot","Mustikat","Mustikat\r\r\n"]
["Turku_Parolanpolun päiväkoti_1.2.246.562.10.10771238911","Metsätähdet","Peukaloiset"]
["Turku_Pernon päiväkoti_1.2.246.562.10.68373329454","Leppäkertut","Mantelit","Pippurit","Siilit"]
["Turku_Piinokankadun päiväkoti_1.2.246.562.10.15920616354","Kerttuset","Kuukkelit","Peipot"]
["Turku_Pääskyvuoren päiväkoti_1.2.246.562.10.44444708372","Talitintit","Västäräkit"]
["Turku_Räntämäen päiväkoti_1.2.246.562.10.15317343729","Vauhtivarpaat"]
["Turku_Sirkkala daghem och förskola_1.2.246.562.10.11417416051","Hemmet 1","Raketerna","Stjärnorna"]
["Turku_Stålarminkadun päiväkoti_1.2.246.562.10.58319693733","Tähtisilmät"]
["Turku_Suotorpankujan päiväkoti_1.2.246.562.10.51062980241","Lumikot"]
["Turku_Syvälahden päiväkoti_1.2.246.562.10.94750079256","Liplatukset","Loiskahdukset","Mainingit","Pärskähdykset","Solinat"]
["Turku_Talinkorventien päiväkoti_1.2.246.562.10.71214553324","Nipsut","Nuuskamuikkuset"]
["Turku_Tallimäenkentän päiväkoti_1.2.246.562.10.39567238066","Kultakaviot","Tähtikaviot","Täpläponit"]
["Turku_Touhula jaani_1.2.246.562.10.92039165284","Salamasukat","Salmasukat","Vauhtivarpaat"]
["Turku_Touhula nättinummi_1.2.246.562.10.27697059304","Juoksujalat","Tempputossut","Tempputossut\r\r\n"]
["Turku_Touhula varissuo_1.2.246.562.10.98634850089","Vauhtivarikset","Vauhtivarikset\r\r\n"]
["Turku_Touhula vähäheikkilä 1_1.2.246.562.10.95182420661"]
["Turku_Touhula yli-maaria_1.2.246.562.10.30739522040","Veijarit"]
["Turku_Tuomaansillan päiväkoti_1.2.246.562.10.99029090430","Kisällit","Sankarit"]
["Turku_Tähtimetsä_1.2.246.562.10.83962618167","Auringonsäteet"]
["Turku_Uittamon päiväkoti_1.2.246.562.10.76784244600","Merihevoset","Meritähdet"]
["Turku_Vasaramäen päiväkoti_1.2.246.562.10.52799105037","Kirsikat","Mustikat","Puolukat"]
["Turku_Viinamäen päiväkoti_1.2.246.562.10.25540211825","Keltasiipi","Männykävyt","Pihlajanmarjat","Tammenterhot","Vihersiipi"]
["Turku_Yli-maarian päiväkoti_1.2.246.562.10.97665211740","Kultasiivet"]
["Tuusula_Kolsan päiväkoti_1.2.246.562.10.64636858074","Seikkailijat"]
["Tuusula_Lahelan tertun päiväkoti_1.2.246.562.10.28527221858","Metsänhaltijat","Puropeikot"]
["Tuusula_Notkopuiston päiväkoti_1.2.246.562.10.31094839698","Metsätähdet","Oravanmarjat","Tuohitupa","Vanamot"]
["Tuusula_Päiväkoti pellava_1.2.246.562.10.22348658430","Hemulit","Muumit","Viljonkat"]
["Tuusula_Roinilan päiväkoti_1.2.246.562.10.11625109134","Lemmikit","Tattarit","Vanamot"]
["Tuusula_Vaunukankaan päiväkoti_1.2.246.562.10.84709192920","Kanelit","Neilikat"]
["Tyrnävä_Päiväkoti karuselli_1.2.246.562.10.67556514551","Karpalot","Puolukat"]
["Tyrnävä_Päiväkoti käpytikka_1.2.246.562.10.75590983823","Pikkutikat"]
["Tyrnävä_Päiväkoti tenavatalo_1.2.246.562.10.78173905528","Pirpanat"]
["Tyrnävä_Päiväkoti toukovakka_1.2.246.562.10.76925919722","Sirppiset","Toukoset","Tähkäset"]
["Tyrnävä_Päiväkoti vekkuli_1.2.246.562.10.51628692652","Maahiset","Mörrit"]
["Tyrnävä_Päiväkoti väentupa_1.2.246.562.10.99464915042","Kotitalo","Pirttiset"]
["Tyrnävä_Touhula murto_1.2.246.562.10.64103179798","Käpyset"]
["Ulvila_Päiväkoti metsätähti_1.2.246.562.10.13859960679","Kurret","Linnut","Perhoset","Siilit"]
["Ulvila_Päiväkoti nahkurinlehti_1.2.246.562.10.71141922600","Linnut","Peukaloiset"]
["Ulvila_Päiväkoti tuulenpesä_1.2.246.562.10.31069349848","Vekarat"]
["Urjala_Aseman koulu esiopetus_1.2.246.562.10.53680073839"]
["Urjala_Laukeelan päiväkoti_1.2.246.562.10.67281443662"]
["Utsjoki_Karigasniemen päiväkoti gollerássi_1.2.246.562.10.81839137387"]
["Utsjoki_Nuorgamin päiväkoti_1.2.246.562.10.64093588040"]
["Utsjoki_Utsjoen päiväkoti saamenkielinen osasto duottaraski_1.2.246.562.10.94064156378","Ainoa 5-vuotiaiden ryhmä"]
["Uurainen_Hirvasen päiväkoti_1.2.246.562.10.79596707947","Männyt"]
["Uurainen_Päiväkoti helmi_1.2.246.562.10.37091584468","Possut"]
["Uurainen_Päiväkoti pikkula_1.2.246.562.10.24243893732","Hippiäiset","Peipposet"]
["Uusikaupunki_Hakametsän päiväkoti_1.2.246.562.10.71090147316","Menninkäiset","Tiitiäiset"]
["Uusikaupunki_Kalannin päiväkoti_1.2.246.562.10.90239614150","Nuput","Versot"]
["Uusikaupunki_Myllymäen päiväkoti_1.2.246.562.10.53053797196","Ainoa 5-vuotiaiden ryhmä"]
["Uusikaupunki_Päiväkoti lokki joonatan_1.2.246.562.10.83010979637","Ainoa 5-vuotiaiden ryhmä"]
["Uusikaupunki_Päiväkoti pisara_1.2.246.562.10.49983338408","Aurinkoiset","Poutapilvet"]
["Uusikaupunki_Päiväkoti satulinna_1.2.246.562.10.43235241064","Ilosilmät"]
["Uusikaupunki_Päiväkoti tiitiäinen_1.2.246.562.10.54483727795","Rytmiryhmä","Svengijengi"]
["Uusikaupunki_Päiväkoti tilkkutäkki_1.2.246.562.10.76612286443","Isot tilkut"]
["Uusikaupunki_Seikowin päiväkoti_1.2.246.562.10.56839583756","Peipposet"]
["Vaala_Vaalan päiväkoti_1.2.246.562.10.46999704367","Puolukat","Vadelmat"]
["Vaasa_Alkulan päiväkoti_1.2.246.562.10.50722498404","Luppakorvat"]
["Vaasa_Gerby daghem_1.2.246.562.10.66302773271","Björnarna","Ugglorna","Örnarna"]
["Vaasa_Gustavsborgs daghem_1.2.246.562.10.12441401176","Blåklockan","Tussilago"]
["Vaasa_Metsäkallion päiväkoti_1.2.246.562.10.76243673621","Kivitaskut","Naavaparrat","Niittyvillat"]
["Vaasa_Paakarin päiväkoti_1.2.246.562.10.90502895916","Piparit","Sämpylät"]
["Vaasa_Pikku kasarmi_1.2.246.562.10.81541878062","Niiskut","Nipsut"]
["Vaasa_Punahilkan päiväkoti_1.2.246.562.10.87253528977","Kauris","Ketunpesä","Majava","Näätä","Vargarna"]
["Vaasa_Päiväkoti pikkuonni_1.2.246.562.10.68997387755","Röllit"]
["Vaasa_Ristinummen päiväkoti_1.2.246.562.10.12359629842","Hippiäiset","Punatulkut"]
["Vaasa_Sundom daghem_1.2.246.562.10.17479827598","Ekorrarna"]
["Vaasa_Teeriniemen päiväkoti_1.2.246.562.10.49806740129","Peipposet"]
["Vaasa_Tervajoen päiväkoti_1.2.246.562.10.35478502996","Maahiset"]
["Valkeakoski_Kärjenniemen päiväkoti_1.2.246.562.10.15136425111","Lounatuuli","Viherpeipot"]
["Valkeakoski_Palmurinteen päiväkoti_1.2.246.562.10.27236243591","Lounatuuli","Poutapilvi","Päivänsäteet"]
["Valkeakoski_Rauhalan päiväkoti_1.2.246.562.10.88533552647","Omenamäki"]
["Valkeakoski_Sassin päiväkoti_1.2.246.562.10.55632781690","Peikot"]
["Valkeakoski_Sorrilan päiväkoti_1.2.246.562.10.28549094614","Safiirit","Timantit","Topaasit"]
["Valkeakoski_Tarttilan päiväkoti_1.2.246.562.10.41468530039","Tarinalaakso"]
["Vantaa_Ankkalammen päiväkoti_1.2.246.562.10.35063730366"]
["Vantaa_Aurinkokiven päiväkoti_1.2.246.562.10.69366907116","Kuunsirpit","Pikkutähdet"]
["Vantaa_Dh dickursby förskolan_1.2.246.562.10.82388944710","Blåbär"]
["Vantaa_Dickursby daghemmet_1.2.246.562.10.84301307991","Blåbär","Lingon"]
["Vantaa_Fazerin päiväkoti_1.2.246.562.10.42341808543","Ainoa 5-vuotiaiden ryhmä"]
["Vantaa_Hakunilanrinteen päiväkoti_1.2.246.562.10.82657405369","Mansikat","Mustikat"]
["Vantaa_Havukallion päiväkoti_1.2.246.562.10.20827834712","Pyrstötähdet","Sateenkaaret"]
["Vantaa_Hevoshaan päiväkoti_1.2.246.562.10.47796615939","Pollet","Ratsut"]
["Vantaa_Hiekkaharjun päiväkoti_1.2.246.562.10.24546929787","Delfiinit","Mäyräkoirat","Sudenkorennot"]
["Vantaa_Husaaritien päiväkoti_1.2.246.562.10.97065985927","Hapsiaiset","Hiitiset","Maahiset"]
["Vantaa_Hämeenkylän päiväkoti_1.2.246.562.10.49634560236","Paprikat","Pippurit"]
["Vantaa_Hämevaaran päiväkoti_1.2.246.562.10.29924200883","Hiiripöllöt","Viirupöllöt"]
["Vantaa_Illenpuiston päiväkoti_1.2.246.562.10.49248787068","Pajunkissat","Tammenterhot"]
["Vantaa_Ilvespuiston päiväkoti_1.2.246.562.10.83547473153","Kristallit","Safiirit","Smaragdit"]
["Vantaa_Isonmännyn päiväkoti_1.2.246.562.10.54034445947","Havuset","Kaarnaset"]
["Vantaa_Itä-hakkilan päiväkoti_1.2.246.562.10.83139592055","Kumpupilvet","Lounatuulet","Lounatuulet\r\r\n","Poutapilvet","Puotapilvet","Päivänsäteet"]
["Vantaa_Jokiuoman päiväkoti_1.2.246.562.10.76995064292","Kaislat"]
["Vantaa_Jönsaksen päiväkoti_1.2.246.562.10.46094994681","Kiviset","Soraset"]
["Vantaa_Kaivokselan päiväkoti_1.2.246.562.10.59117301685","Hedelmätarha","Vekarat","Viikarit"]
["Vantaa_Kanniston päiväkoti_1.2.246.562.10.95551161649","Kuuset","Männyt","Pihlajat"]
["Vantaa_Kartanonkosken päiväkoti_1.2.246.562.10.46670710568","Vanamot","Villakot"]
["Vantaa_Keihäspuiston päiväkoti_1.2.246.562.10.23756056869","Ankkurit"]
["Vantaa_Keimolanmäen päiväkoti_1.2.246.562.10.19973290877","Rallikuskit","Vauhtiveikot"]
["Vantaa_Kiirunatien päiväkoti_1.2.246.562.10.47307985706","Kirsikkalaakso","Mansikkamäki","Pihlajapuisto"]
["Vantaa_Kimaran päiväkoti_1.2.246.562.10.21794658084","Koivut","Vaahterat"]
["Vantaa_Kivimäen päiväkoti_1.2.246.562.10.54083820321","Rubiinit"]
["Vantaa_Kivistön päiväkoti_1.2.246.562.10.94184272279","Kaislikko"]
["Vantaa_Koskimyllyn päiväkoti_1.2.246.562.10.31507502594","Haltijat","Myllytontut","Myllärit","Tontut","Tontut\r\r\n"]
["Vantaa_Kuusikkotien päiväkoti_1.2.246.562.10.29170734064","Meriharakat","Vihervarpuset"]
["Vantaa_Leinelän päiväkoti_1.2.246.562.10.55232400717","Naavanuppuset","Sammalkiitäjät","Suoseikkailijat","Usvasäteet","Vesakkovillikot"]
["Vantaa_Leppäkorven päiväkoti_1.2.246.562.10.81274790625","Kissankulma","Melukylä"]
["Vantaa_Lipunkantajan päiväkoti_1.2.246.562.10.86945022548","Sateenkaaret"]
["Vantaa_Louhelan päiväkoti_1.2.246.562.10.19340539238","Tenavat","Ystävät"]
["Vantaa_Lystilän päiväkoti_1.2.246.562.10.50155064053","Kuuset","Pihlajanmarjat","Tammenterhot"]
["Vantaa_Maarukan päiväkoti_1.2.246.562.10.85259918689","Havulinna"]
["Vantaa_Martinlaakson päiväkoti_1.2.246.562.10.32792527346","Ferrarit","Lentokenttä 1","Lentokenttä 2","Mersut"]
["Vantaa_Matarin päiväkoti_1.2.246.562.10.67929320413","Auringonomaiset","Unenomaiset","Uteliaat mielet"]
["Vantaa_Metsolanmäen päiväkoti_1.2.246.562.10.96026637817","Hattivatit","Hemulit","Muumit"]
["Vantaa_Metsälinnun päiväkoti_1.2.246.562.10.89601757894","Hippiäiset","Peukaloiset"]
["Vantaa_Nissaksen päiväkoti_1.2.246.562.10.92742352203","Punainen tupa","Ruskatupa","Sininen tupa","Vihreä tupa"]
["Vantaa_Näätäpuiston päiväkoti_1.2.246.562.10.37277212488","Hiirulaiset","Jänöt","Oravat"]
["Vantaa_Ollaksen päiväkoti_1.2.246.562.10.54011003347","Kuusela","Tammela"]
["Vantaa_Pakkalanrinteen päiväkoti_1.2.246.562.10.33678111601","Hunajalaakso","Mustikkametsä","Tuulentupa","Vihervaara"]
["Vantaa_Pallastunturin päiväkoti_1.2.246.562.10.28239345912","Havuset","Neulaset"]
["Vantaa_Peltolan päiväkoti_1.2.246.562.10.98127218299","Hillat"]
["Vantaa_Peltovuoren päiväkoti_1.2.246.562.10.78842965879","Kuusela","Ohraset"]
["Vantaa_Piilipuun päiväkoti_1.2.246.562.10.36321721379","Kammari","Pirtti","Tupa"]
["Vantaa_Raikupolun päiväkoti_1.2.246.562.10.59371400686"]
["Vantaa_Rautpihan päiväkoti_1.2.246.562.10.38483099776","Aurinkoiset","Pisarat"]
["Vantaa_Ristipuron päiväkoti_1.2.246.562.10.24117773507","Käkikellot","Käkikellot \r\r\n","Lintukoto","Lumikot"]
["Vantaa_Saturnuksen päiväkoti_1.2.246.562.10.12176861511","Tähtisateet"]
["Vantaa_Seljapolun päiväkoti_1.2.246.562.10.95703120592","Ainoa 5-vuotiaiden ryhmä"]
["Vantaa_Simpukan päiväkoti_1.2.246.562.10.23497962672","Merihevoset"]
["Vantaa_Solkikujan päiväkoti_1.2.246.562.10.11596601333","Huvikumpu","Kissankulma"]
["Vantaa_Suitsikujan päiväkoti_1.2.246.562.10.91485377864","Ainoa 5-vuotiaiden ryhmä"]
["Vantaa_Tammiston päiväkoti_1.2.246.562.10.38307900738","Haperot","Kuukuset"]
["Vantaa_Tammistonrannan päiväkoti_1.2.246.562.10.57722147923","Kaislat","Lumpeet","Ulpukat"]
["Vantaa_Tikkurilan päiväkoti_1.2.246.562.10.85388116130","Gibbonit","Kengurut","Kolibrit"]
["Vantaa_Timotej daghem_1.2.246.562.10.49391154694","Blåklockorna","Gullvivorna"]
["Vantaa_Ulrikan päiväkoti_1.2.246.562.10.13942631089","Salamaja","Taikaranta"]
["Vantaa_Urheilupuiston päiväkoti_1.2.246.562.10.65974537766","Kuningaskalastajat","Puukiipijät"]
["Vantaa_Vaaralanpuiston pk_1.2.246.562.10.51939509439","Perhoset","Pihlajanmarjat","Pokemonit","Revontulet"]
["Vantaa_Vallinojan päiväkoti_1.2.246.562.10.59009870755","Helat","Niitit","Pultit","Ruuvit"]
["Vantaa_Vantaanlaakson päiväkoti_1.2.246.562.10.15995539291","Maahiset","Menninkäiset"]
["Vantaa_Varistonniityn päiväkoti_1.2.246.562.10.38876464256"]
["Vantaa_Vartiokujan päiväkoti_1.2.246.562.10.62902942804","Kastanjalehto","Pihlajapolku"]
["Vantaa_Vaskivuoren päiväkoti_1.2.246.562.10.54763648992","Koivut","Peipot","Siepot"]
["Vantaa_Vehnätien päiväkoti_1.2.246.562.10.20856584253","Kardemummat"]
["Vantaa_Veturin päiväkoti_1.2.246.562.10.54575570889","Junailijat","Kuskit","Pumput"]
["Varkaus_Kankunharjun päiväkoti_1.2.246.562.10.72224155654","Ulpukat","Unikot"]
["Varkaus_Taulumäen päiväkoti_1.2.246.562.10.78406586137","Esikot"]
["Varkaus_Touhula aarrearkku_1.2.246.562.10.24250945664","Rubiinit","Timantit"]
["Vihti_Daghemmet aleksandra_1.2.246.562.10.75865060935","Delfinerna"]
["Vihti_Enärannan päiväkoti_1.2.246.562.10.52730859882","Vekarat"]
["Vihti_Haimoon päiväkoti_1.2.246.562.10.43011029378","Seikkailijat"]
["Vihti_Hiidenrannan päiväkoti_1.2.246.562.10.89135586710","Reppulaiset","Veskarit"]
["Vihti_Huhmarnummen päiväkoti_1.2.246.562.10.25416724406","Havuset"]
["Vihti_Kuoppanummen päiväkoti_1.2.246.562.10.72464651487","Ilvekset","Karhut","Kärpät","Siilit"]
["Vihti_Lankilan päiväkoti_1.2.246.562.10.40351544164","Hemulit","Muumit","Muumit\r\r\n"]
["Vihti_Luontolan päiväkoti_1.2.246.562.10.84537275277","Leppäkertut","Sinisiivet"]
["Vihti_Metsäpolun päiväkoti_1.2.246.562.10.20545799239","Menninkäiset","Repolaisten ryhmä"]
["Vihti_Myrskylänmäen päiväkoti_1.2.246.562.10.56027715996","Tuulenpesä"]
["Vihti_Ojakkalan päiväkoti_1.2.246.562.10.87770362991","Kesäkumpu","Melukylä"]
["Vihti_Otalammen päiväkoti_1.2.246.562.10.44199416346","Kaislat","Oravat"]
["Vihti_Pajuniityn päiväkoti_1.2.246.562.10.26305934577","Haukkalinna","Haukkalinna\r\r\n","Karhunpesä","Ketunkolo","Oravanpesä","Pöllönkolo"]
["Vihti_Vanjärven päiväkoti_1.2.246.562.10.97574067647"]
["Vihti_Vihtijärven päiväkoti_1.2.246.562.10.26015995181","Ainoa 5-vuotiaiden ryhmä"]
["Vimpeli_Metsätarhan päiväkoti_1.2.246.562.10.18552842181","Ketunkolo"]
["Vöyri_Daghemmet liljekonvaljen_1.2.246.562.10.62951203363","Blåklockan","Skogsviolen"]
["Vöyri_Daghemmet solbacken_1.2.246.562.10.90087070554","Femårsgruppen"]
["Ylitornio_Lukion päiväkoti_1.2.246.562.10.63400500235","Vintin vintiöt"]
["Ypäjä_Heporanta päiväkoti_1.2.246.562.10.95839374451"]
["Ähtäri_Sinikello_1.2.246.562.10.82393896145","Temput"]
["Ähtäri_Tassula_1.2.246.562.10.64171075258","Ketut","Nallet"]
["Ähtäri_Vilikkilä_1.2.246.562.10.68303228107","Metkut","Temput"]
["Äänekoski_Alkulan päiväkoti_1.2.246.562.10.31790441880","Poutapilvet"]
["Äänekoski_Katvelan päiväkoti_1.2.246.562.10.27819184808","Haitulat","Menninkäiset"]
["Äänekoski_Kellosepän päiväkoti_1.2.246.562.10.10706370219","Mestarit","Viisarit"]
["Äänekoski_Koulunmäen esiopetus_1.2.246.562.10.49291646435","Mestarit"]